Workbook

Sheet Cover Page
D1: Add company logo
N2: Version 22.3 30/11/22
B8: Add photo
N13: Notes:
N14: This template may require adjustments by individual operators to meet specific reporting requirements as defined in the site Permit(s)
B29: Annual Performance Report 2022
B31: Permit EPR/BR4551IC
B33: Kent Enviropower Limited
B35: Allington Incinerator, Allington Quarry
B37: Kent Enviropower Limited
B39: Year: | C39: 2022
B41: Address: | C41: Laverstoke Road, Allington, Maidstone, Kent. ME16 0LE
B43: Tel: | C43: 0844 736 9990
B45: Email:
B47: Prepared by: | C47: Trevor Ellis | F47: Position: | G47: Environment Manager
B49: Approved by: | C49: Tony Stanbridge | F49: Position: | G49: General Manager
B51: Version: | C51: 1
B53: Issue Date: | C53: 31st January 2023

Sheet Contents
A1: =+'Cover Page'!$B$29 -> Annual Performance Report 2022 | E1: =+'Cover Page'!$B$33 -> Kent Enviropower Limited
A3: Contents | K3: Notes:
A4: Section | B4: Subject | H4: Page | K4: Section references and Page nos. to be inserted
B5: Facility Information | K5: Sections and Subjects may require adjustment by individual operators to meet specific reporting requirements as defined in the sites Permit(s)
B6: Operational Data
B7: Operational Summary
B8: Performance Form 1
B9: Energy Form 1
B10: Permit Compliance
B11: Improvements
B12: Public Liasion
B13: Carbon dioxide and nitrous oxide emissions
B14: Residue Quality
B15: Emissions to Water
B16: Emissions to Air (periodically monitored)
B17: Emissions to Air (continuously monitored)
B18: Hydrogen Chloride emissions
B19: Sulphur Dioxdie emsissions
B20: Oxides of Notrigen emissions
B21: Total Organic Carbon emissions
B22: Particulate Matter emissions
B23: Carbon Monoxide emissions
B24: Ammonia emissions
A27: Version Control
A28: Section | B28: Information | H28: Date
A35: Distribution
A36: Copy | B36: Name, Role | H36: No.
A45: This report is required under the Industrial Emissions Directive’s Article 55(2) requirements on reporting and public information on waste incineration plants and co-incineration plants, which require the operator to produce an annual report on the functioning and monitoring of the plant and make it available to the public.

Sheet Facility Info
A1: =+'Cover Page'!$B$29 -> Annual Performance Report 2022 | E1: =+'Cover Page'!$B$33 -> Kent Enviropower Limited
A3: Plant Description and Design | K3: Notes:
A5: Installation Description The Installation receives non hazardous municipal and industrial waste, recovers recyclable elements for reuse and eliminates the combustible element of the residue by burning in a fluidised bed furnace. Energy is recovered from the process and converted to electricity in place of non-renewable fossil fuels. The combustion gases are cleaned to meet the standards required by the Directive before discharge from a tall chimney. Ashes and other solid residues are removed from the installation. The Installation covers the site and the entire EfW plant including all EfW lines, waste reception, storage, on-site pre-treatment facilities, water, fuel and air supply systems, boiler, facilities for the treatment of exhaust gases, on-site facilities for treatment or storage of residues and waste water, stack, devices and systems for controlling combustion operations, recording and monitoring conditions. The Installation has a design throughput of approx 580,000 tonnes per annum with an EfW capacity approx 560,000 tonnes per annum. The transfer loading station receives food waste and clean source separated recyclables which it reloads for onward transport and recovery. There is a single waste reception followed by three independent waste treatment lines each complete with a heat recovery boiler, acid gas abatement, bag filter and a separate flue in the chimney. The heat produced from the combustion of the waste is used to generate steam in the boilers and the steam is then combined and passed to a steam turbine which generates approx 34.5 MW of electrical energy for export to the National Grid. | K5: Include summary of plant design, design capacity, no. of combustion lines, electrical and heat capacity and any other general information that descibes the facility, its location and purpose
A15: Summary of Operational Processes and Procedures
A17: Raw Materials Waste is delivered to the plant in road vehicles which are weighed before proceeding to the tipping hall. This is a fully enclosed building, maintained under slight negative pressure to ensure that no odours, dust or litter can escape the building. The vehicles carry either unsorted mixed municipal waste, sorted waste for recycling or mixed recyclable waste and non recyclable waste and each tip into the appropriate section of the tipping hall. The unsorted mixed waste (black bag) is transferred by crane grab to a waste shredding line, it then moves forward through a metals extraction section where ferrous metals are removed for recycling before moving to the prepared fuel bunker. The facility also operates as a waste transfer site. It receives clean mixed recyclates and food wastes collected in the community and loads them in bulk onto their designated transport vehicles for transport off site for recovery. A crane grab in the prepared fuel bunker both mixes the waste and charges the hoppers of the three incineration lines. Hydrated lime for the flue gas cleaning process is delivered by bulk tanker and offloaded pneumatically into three 125m3 silos vented through a reverse pulse jet filter. Activated carbon for the flue gas cleaning process is stored in dedicated silos that are pneumatically filled from delivery trucks. There are three silos, one for each line, each equipped with filters to prevent dust emissions during filling. Urea, dissolved in water is stored in a fully bunded tank and is injected into the furnaces as necessary to control NOx emissions. Caustic soda for water treatment resin regeneration is delivered by bulk tanker and offloaded into a 5.5 m3 tank with scrubber, inside the demineralisation area. Hydrochloric acid for water treatment resin regeneration is delivered by bulk tanker and offloaded into a 5.5 m3 tank vented through the caustic soda scrubber in a bund outside the demineralisation area. Various other water treatment chemicals are delivered in appropriate containers and stored in bunded areas. Gas oil for the combustion chamber burners and on-site vehicles is stored in a fully bunded 150 m3 tank. Sand for the fluidised bed furnaces is stored in 3 silos each of 55 cubic meters capacity. Various maintenance materials (oils, greases, insulants, antifreezes, welding and fire fighting gases etc.) are stored in the appropriate manner. Combustion Process:- The technology employed for incineration is the ROWITEC unit which uses a fluidised bed process. The design has an inclined air distributor plate with a number of separate air supply chambers providing differential air flows across the bed, causing a revolving action. This technique promotes rapid and uniform mixing of the sand and bottom ash and ensures that heavy inert and non-combustible material migrates to the sides of the bed where they can easily be removed. An angled furnace wall above the fluidised bed zone restrains bed expansion under high fluidising air flows and so minimises particulate carry over. The elliptical patterns of air flow converge in the centre of the combustion area ensuring effective vertical and lateral turbulent mixing and high combustion efficiency and uniformity. The waste is burned on a bed consisting of sand and ash that is held in suspension by an upward flow of combustion air that circulates the combustion mixture up to the throat of the furnace. The furnace operating design is based on a thermal capacity of 53.8MW at full load and this can be achieved over the typical range of waste calorific values expected with municipal waste. The combustion air system provides the furnace with the total air requirements for fluidisation and combustion. Primary air is supplied to the bottom of the combustion chamber and fluidises the bed. This air is extracted from the waste reception and storage buildings and destroys all odours in the combustion chamber. Each furnace is equipped with two fuel oil burners for use at start-up to heat the furnace and also during extreme reductions in waste fuel calorific value when the temperature of the furnace would otherwise fall below 850 degrees Centigrade. Combustion control of the furnace will be achieved through a combination of furnace bed and freeboard temperature control, primary air flow control, oxygen control within the flue gas and furnace load. Recirculated flue gas is fed to the furnace bed as a cooling medium to control the furnace bed temperature and also to assist the control of NOx by influencing the combustion temperature conditions within the furnace. The furnace bed is managed to remove non-combustible material (bottom ash) from the bed and maintain the sand level within the optimum operating range. Bottom ashes produced in the furnace together with sand migrate down the slope of the furnace to the discharge section located at each side of the bed. The bottom ash and sand are both withdrawn from the discharge sections of the bed by two water-cooled discharge screw conveyors. Material passing out of the screw conveyors is discharged to a vibrating screen. Undersize material is returned to the sand hopper for re-use within the furnace while the oversized material is sent off site for recovery or re-use or landfill. | K17: Include summary of key processes and procedures such as (but not limited to); waste reception, control rooms, grate, bed and bolier, energy & heat generation, cooling systems, residue management, emission controls, health and safety systems, maintenance
A47: Energy Recovery Hot gases from the furnace pass through to a boiler designed to generate steam. The boiler comprises two fully water cooled radiation chambers, a single pass horizontal plain tube convective heating surface, incorporating a three stage convective superheater unit and a plain tube economiser section. The economiser is designed for high velocity gas flow to minimise the reformation of dioxins in the critical de Novo synthesis range. Steam is generated at 65 bar and a final temperature of 420 degrees Centigrade. The high pressure steam from all three boilers feeds into a common header which in turn will feed a condensing steam turbine that will generate electricity. Steam exiting the turbine will be condensed in an air cooled condenser and the condensate returned to the boilers. Gas Cleaning The plant is designed to meet the requirements of the Industrial Emissions Directive as a minimum for releases to air by a combination of main process design and operation and abatement equipment. Flue gases pass from the boiler to the gas cleaning equipment. The gas passes to an electrostatic precipitator (ESP) for the separation of ash carried over from the furnace with the flue gas. Material collected in the ESP will be discharged by means of rotary valves and chain conveyors and then pneumatically fed to the ash silos or re-injected into the flue gas cleaning system. Gases leaving the ESP enter the gas cleaning system. This comprises a circo clean reactor and bag filter system. Gases entering the circo clean reactor will be at a temperature of 190 to 230 degrees C and will come into contact with a mixture of water, hydrated lime and activated carbon that have been injected into the reactor. The reactor is designed to reduce or remove acidic pollutants such as HCl, SO2 and HF by the use of the hydrated lime and dioxins and furans, PCBs, PAHs, mercury vapour and heavy metal salts such as mercury chloride by the use of the activated carbon. The injected water enhances the reactions and cools the gas. The control system of the circo clean reactor optimises the use of reactants by balancing the feed rate with the concentration of the pollutants entering the circo clean reactor. The final stage of the gas cleaning system is the bag filter unit which separates the particulate material from the flue gas. The baghouse filter consists of compartments each of which contains a number of tubular filter bags. A thick porous layer of particulate builds on the bag surfaces to form a filter cake which efficiently removes ultra fine particles from the gas stream and the excess lime continues to react with the acid gases. Bag house residue is discharged from the compartments via the integrated buffer storage by a closed pneumatic conveying system into the reaction product silos. Silos are equipped with a filter, hopper heating and fluidisation system to assist discharge. The residue is then discharged directly into road vehicles under dust free conditions for transport off site to a licensed facility. Nitrogen oxides (NOx) abatement is achieved by the use of both flue gas recirculation (FGR) and selective non-catalytic reduction (SNCR). The SNCR is based on the injection of urea into the furnace chambers before the boilers and before the lime and carbon injection and before the gas passes to bag filters. The cleaned gas then discharges to atmosphere via three 80-metre flues in a common stack at an efflux velocity in excess of 15 ms-1 at maximum throughput. Ancillary Operations Demineralised water is required to compensate for boiler blowdown losses. A package demineralisation plant provides this water. The ion exchange resins are regenerated using sodium hydroxide and hydrochloric acid and the regeneration effluent is routed through a neutralisation tank to the collection pit for reuse where possible. Ash Handling Bottom ash, the combined boiler and ESP ash and the flue gas treatment residue (FGTR) from the bag filter system, are each sent for separate disposal off site by licensed contractors subject to waste licensing legislation. FGTR is not mixed with any other ash at any time. The bottom ash is likely to be subject to ferrous and non ferrous metals extraction by the contractors before disposal or reuse. All operations will be subject to waste licensing legislation and be tracked by the Environment Agency. At least quarterly sampling of the bottom ash will be carried out to ensure effective burn out is being achieved by testing for the “loss on ignition” of the residual ash. All other solid waste residues arising from the operation of the process will be removed from site, in enclosed containers, for disposal by suitable contractors. Liquid Effluent and Site Drainage Uncontaminated surface water from the roads and parking area that is not reused within the process will be discharged to sewer.
A74: Emissions Monitoring Emissions from the stack are continuously monitored for: particulate, carbon monoxide (CO), ammonia (NH3), sulphur dioxide (SO2), hydrogen chloride (HCl), oxygen (O2), nitrogen oxides (NOx) and volatile organic compounds (VOC). In addition periodic sampling and measurement will be carried out for metals cadmium (Cd), thallium (Tl), mercury (Hg), antimony (Sb), arsenic (As), lead (Pb), chromium (Cr), cobalt (Co), copper (Cu), manganese (Mn), nickel (Ni), vanadium (V), dioxins and furans, dioxin like PCBs, hydrogen fluoride (HF) and nitrous oxide (N2O). Periodic measurements will be carried out four times in the first year and thereafter either at the same frequency or twice per year dependant on the substances.

Sheet Operational Data
A1: =+'Cover Page'!$B$29 -> Annual Performance Report 2022 | E1: =+'Cover Page'!$B$33 -> Kent Enviropower Limited
A3: Operational Data | K3: Notes:
A4: Plant Size | B4: 560000 | D4: tonnes pa | E4: 41670 | F4: MWth | G4: 376680 | H4: MWe | K4: * - RDF to include SRF
A5: No. of combustion lines | B5: 3 | D5: No. of Turbines: | F5: 1 | K5: ** - CHP plants only
K6: 2020 updates include; heat in MWh, water in Litres, NCV in MJ/kg
A7: Waste types received | B7: Unit | C7: Q1 | D7: Q2 | E7: Q3 | F7: Q4 | G7: Year Total | H7: %
A8: Household / Local Authority | B8: tonnes | C8: 69602.44 | D8: 83133.88 | E8: 80770.238 | F8: 79493.78 | G8: =SUM(C8:F8) -> 313000.338 | H8: =IF(G8>0,G8/$G$18,"-") -> 0.6018532059 | K8: Availabiity Definition: 'the availability of a line is to be calculated by the number of hours the line reported Continuously Monitored emission levels to the Regulator through the calendar year divided by the total number of hours in that year. The overall plant availability is calculated as the Mean of all lines in the plant. For clarity this includes periods of Other Than Normal Operating Conditions (OTNOC) and abnormal operation.' Rationale: The primary function of an Energy from Waste facility is the disposal of waste. It follows therefore that the availability of a plant is determined by the period of time a facility spends undertaking this activity.
A9: Commercial & Industrial | C9: 34947.75 | D9: 39540.69 | E9: 45269.362 | F9: 60736.04 | G9: =SUM(C9:F9) -> 180493.842 | H9: 0.3470628759
A10: Hazardous | G10: 0 | H10: -
A11: Clinical | G11: 0 | H11: -
A12: Waste wood (biomass) | G12: 0 | H12: -
A13: Refuse Derived Fuel * - H'hold/LA | G13: =SUM(C13:F13) -> 0 | H13: -
A14: Refuse Derived Fuel * - C&I | G14: 0 | H14: -
A15: Food waste | C15: 1194.97 | D15: 1108.5 | E15: 1036.1 | F15: 1054.52 | G15: 4394.09 | H15: 0.00844918306
A16: Recyclates waste | C16: 5202.86 | D16: 5028.78 | E16: 5007.18 | F16: 4772.44 | G16: 20011.26 | H16: =IF(G16>0,G16/$G$18,"-") -> 0.03847868364
A17: Card/Paper | C17: 585.44 | D17: 475.78 | E17: 504.52 | F17: 595.66 | G17: 2161.4 | H17: 0.004156051484
A18: Total waste received | C18: =SUM(C8:C17) -> 111533.46 | D18: =SUM(D8:D17) -> 129287.63 | E18: =SUM(E8:E17) -> 132587.4 | F18: =SUM(F8:F17) -> 146652.44 | G18: =SUM(G8:G17) -> 520060.93 | H18: 1
A19: Rejected Waste | C19: 209.44 | D19: 132.98 | E19: 9.58 | F19: 6.82 | G19: 358.82 | H19: =IF(G19>0,G19/$G$18,"-") -> 0.0006899576171
A20: Unprocessed waste transferred out | C20: 6983.27 | D20: 6613.06 | E20: 6547.8 | F20: 6422.62 | G20: =SUM(C20:F20) -> 26566.75 | H20: =IF(G20>0,G20/$G$18,"-") -> 0.05108391819
A21: Total waste combusted | C21: 92221 | D21: 119683 | E21: 119926 | F21: 131847 | G21: =SUM(C21:F21) -> 463677 | H21: =IF(G21>0,G21/$G$18,"-") -> 0.891582069
A23: Energy Useage / Export | B23: Unit | C23: Q1 | D23: Q2 | E23: Q3 | F23: Q4 | G23: Year Total | H23: KWh/te
A24: Power Generated | B24: MWh | C24: 53258.33 | D24: 68220.65 | E24: 71946.88 | F24: 75112.14 | G24: =SUM(C24:F24) -> 268538 | H24: =IF(G24>0,G24*1000/$G$21,"-") -> 579.1488472
A25: Power Exported | C25: 40698.88 | D25: 52722 | E25: 56036 | F25: 59257 | G25: =SUM(C25:F25) -> 208713.88 | H25: =IF(G25>0,G25*1000/$G$21,"-") -> 450.1277398
A26: Power Used on site | C26: 11522 | D26: 15586.09 | E26: 14866.5 | F26: 15465.91 | G26: =SUM(C26:F26) -> 57440.5 | H26: =IF(G26>0,G26*1000/$G$21,"-") -> 123.8804168
A27: Power Imported | C27: 811 | D27: 493 | E27: 429 | F27: 206 | G27: 1939 | H27: =IF(G27>0,G27*1000/$G$21,"-") -> 4.181790341
A28: Parasitic Load | B28: % | C28: =IF(C24>0,1-C25/(C24+C27),"-") -> 0.2472834415 | D28: =IF(D24>0,1-D25/(D24+D27),"-") -> 0.2327288683 | E28: =IF(E24>0,1-E25/(E24+E27),"-") -> 0.2257641634 | F28: =IF(F24>0,1-F25/(F24+F27),"-") -> 0.2132439808 | G28: =IF(G24>0,1-G25/(G24+G27),"-") -> 0.2283488799
A29: Thermal Energy Produced ** | B29: MWh | G29: =SUM(C29:F29) -> 0 | H29: =IF(G29>0,G29*1000/$G$21,"-") -> -
A30: Thermal Energy Exported ** | G30: 0 | H30: =IF(G30>0,G30*1000/$G$21,"-") -> -
A31: R1 value (if applicable) | C31: 0.62
A33: Waste Disposal & Recovery | B33: Unit | C33: Q1 | D33: Q2 | E33: Q3 | F33: Q4 | G33: Year Total | H33: % inputs
A34: APC Residues - produced (including FGT, Boiler and ESP ash) | B34: tonnes | C34: 8863.96 | D34: 12076.02 | E34: 12059.94 | F34: 11852.1 | G34: =SUM(C34:F34) -> 44852.02 | H34: =IF(G34>0,G34/$G$21,"-") -> 0.09673117278
A35: IBA - produced | C35: 10389.54 | D35: 12066.9 | E35: 12586.736 | F35: 12227.16 | G35: 47270.336 | H35: =IF(G35>0,G35/$G$21,"-") -> 0.1019466913
A36: Metals recycling | C36: 2866.86 | D36: 3851.32 | E36: 4025.38 | F36: 3785.48 | G36: =SUM(C36:F36) -> 14529.04 | H36: 0.03133439873
A37: Other | C37: 0 | D37: 0 | E37: 0 | F37: 0 | G37: =SUM(C37:F37) -> 0 | H37: -
A38: Other | C38: 0 | D38: 0 | E38: 0 | F38: 0 | G38: 0 | H38: -
A39: Other | C39: 0 | D39: 0 | E39: 0 | F39: 0 | G39: 0 | H39: -
A41: Raw Material Usage | B41: Unit | C41: Q1 | D41: Q2 | E41: Q3 | F41: Q4 | G41: Year Total | H41: kg or Ltr /te
A42: Mains Water | B42: ltrs | C42: 44176000 | D42: 45706000 | E42: 43102000 | F42: 43102000 | G42: =SUM(C42:F42) -> 176086000 | H42: =IF(G42>0,G42/$G$21,"-") -> 379.7600485
A43: Lime / hydrated lime | B43: kgs | C43: 648000 | D43: 934000 | E43: 860000 | F43: 746000 | G43: 3188000 | H43: =IF(G43>0,G43/$G$21,"-") -> 6.875475816
A44: Urea | B44: kgs | C44: 8000 | D44: 66000 | E44: 0 | F44: 0 | G44: 74000 | H44: 0.1595938552
A45: Activated carbon | B45: kgs | C45: 86000 | D45: 57000 | E45: 72000 | F45: 66000 | G45: =SUM(C45:F45) -> 281000 | H45: 0.606025315
A46: Caustic Soda | B46: kgs | C46: 48000 | D46: 31000 | E46: 52000 | F46: 37000 | G46: 168000 | H46: 0.3623211848
A47: Hydrochloric Acid | B47: kgs | C47: 60000 | D47: 38000 | E47: 55000 | F47: 30000 | G47: 183000 | H47: 0.3946712906
A48: Sand | B48: kgs | C48: 702000 | D48: 850000 | E48: 819000 | F48: 1044000 | G48: 3415000 | H48: 7.36504075
A49: Ammonia | B49: kgs | C49: 0 | D49: 0 | E49: 0 | F49: 0 | H49: -
A50: Salt | B50: kgs | C50: 0 | D50: 1000 | E50: 2000 | F50: 1000 | G50: 4000 | H50: 0.008626694876
A51: Fuel oil | B51: ltrs | C51: 224106 | D51: 421490 | E51: 397550 | F51: 295280 | G51: 1338426 | H51: 2.886548179
A53: Summary | B53: Line/Unit | C53: Q1 | D53: Q2 | E53: Q3 | F53: Q4 | G53: Year Total | J53: Hrs in year
A54: Availability of waste combustion by line, hrs | B54: 1 | C54: 1514.4 | D54: 1970.26 | E54: 1573.28 | F54: 2076.77 | G54: =SUM(C54:F54) -> 7134.71 | H54: =+(G54)/$J$54 -> 0.8144646119 | J54: 8760
B55: 2 | C55: 1714.68 | D55: 1731.84 | E55: 2014.53 | F55: 1789.89 | G55: 7250.94 | H55: =+(G55)/$J$54 -> 0.8277328767
B56: 3 | C56: 1402.92 | D56: 1995.42 | E56: 2157.4 | F56: 1935.5 | G56: 7491.24 | H56: 0.8551643836
A57: Overall Availability, mean avg. of all lines, hrs | C57: 1544 | D57: 1899.173333 | E57: 1915.07 | F57: 1934.053333 | G57: =AVERAGE(G54:G56) -> 7292.296667 | H57: 0.8324539574
A58: Hours of turbine operations, hrs | B58: 1 | C58: 1717.65 | D58: 2095.25 | E58: 2148.92 | F58: 2173.18 | G58: 8135 | H58: 0.928652968
A59: Hours of heat / steam export | G59: 0 | H59: =IF(B59>0,#REF!/J54,"n/a") -> n/a
A60: Net Calorific Value of waste | B60: MJ/kg | H60: -
A61: Abnormal Events | B61: qty. | C61: 1 | D61: 1 | E61: 0 | F61: 0 | G61: 2 | H61: =IF(G61>0,"yes","no") -> yes
A62: Abnormal operation | B62: hours | C62: 2 | D62: 0.5 | E62: 0 | F62: 0 | G62: 2.5 | H62: =+(G62)/J54 -> 0.0002853881279
A63: Permit Breaches | B63: qty. | C63: 1 | D63: 0 | E63: 0 | F63: 4 | G63: 5 | H63: =IF(G63>0,"yes","no") -> yes

Sheet Operational Summary
A1: =+'Cover Page'!$B$29 -> Annual Performance Report 2022 | E1: =+'Cover Page'!$B$33 -> Kent Enviropower Limited
A3: Summary of Plant Operations and Maintenance during the reporting year | K3: Notes:
A5: Line 3 and Line 2 underwent planned maintenance outages in March and April, with particular focus in the following areas: - Furnace refractory inspection and repair/replacement - Boiler cleaning and inspection using non-destructive testing - Inconel weld overlay of boiler tube to protect against corrosion from flue gas - Inspection and overhaul of 120+ valves to improve efficiency - Replacement of sand screw cooling systems - Dry-ice cleaning of Electrostatic Precipitators to improve efficiency - Inspection and replacement of residue ash hopper walls where thin - Inspection and cleaning of electrical system components For a period of 9 days the entire site was shut down and fed via generators to enable 3 yearly maintenance of common plant systems, including: - High voltage electrical equipment inspection and testing - Statutory inspection of pressure systems including safety valves - Inspection of the chimney - Upgrade of fuel preparation conveyors | K5: Include summary of key operational and/or mainteanance activity undertaken in the year, such as any major component upgrades and/or replacements
A29: Summary of Residue Handling for the reporting year
A31: Bottom ash, the combined boiler and ESP ash and the flue gas treatment residue (FGTR) from the bag filter system, are each sent for separate disposal off site by licensed contractors subject to waste licensing legislation. FGTR is not mixed with any other ash at any time. The bottom ash is likely to be subject to ferrous and non ferrous metals extraction. IBA is subject to hazardous assessment twice a month and approx. 42 vehicles are sent off site every week for recovery. The APC residues are tested quarterly and approx. 35 tankers are sent off site every week. | K31: Include in here a summary of residue handling regimes and destinations

Sheet Perf. Form 1
A1: =+'Cover Page'!C39 -> 2022 | B1: Annual Reporting Performance Form 1
A3: =+'Cover Page'!B31 -> Permit EPR/BR4551IC | F3: Operator: | G3: Kent Enviropower Limited
A4: Facility: | B4: =+'Cover Page'!B33:I33 -> Kent Enviropower Limited | F4: Form: | G4: Performance 1
A6: Reporting Period from: | D6: 2022-01-01 | F6: to: | G6: 2022-12-31
A8: =+A1 -> 2022 | B8: Annual Reporting of Waste Disposal and Recovery
A9: Waste Description | C9: Disposal Route(s) | E9: Disposal Tonnes | G9: Recovery Tonnes | I9: % / tonne of waste incinerated
A10: 1) Hazardous Wastes
A11: APC Residues (including FGT, Boiler and ESP ash) | C11: Landfill | E11: 10088.58 | I11: =IF((E11+G11)>0,(E11+G11)/'Operational Data'!$G$21, "-") -> 0.02175777535
A12: APC Residues (including FGT, Boiler and ESP ash) | C12: Recycling | G12: 34763.44 | I12: =IF((E12+G12)>0,(E12+G12)/'Operational Data'!$G$21, "-") -> 0.07497339743
I13: =IF((E13+G13)>0,(E13+G13)/'Operational Data'!$G$21, "-") -> -
I14: =IF((E14+G14)>0,(E14+G14)/'Operational Data'!$G$21, "-") -> -
A15: Total Hazardous Waste | E15: =SUM(E11:F14) -> 10088.58 | G15: =SUM(G11:H14) -> 34763.44 | I15: =IF((E15+G15)>0,(E15+G15)/'Operational Data'!$G$21, "-") -> 0.09673117278
A17: 2) Non-Hazardous Wastes
A18: IBA | C18: Recycling | G18: 47270.336 | I18: =IF((E18+G18)>0,(E18+G18)/'Operational Data'!$G$21, "-") -> 0.1019466913
A19: Ferrous Metal | C19: Recycling | G19: 14529.04 | I19: =IF((E19+G19)>0,(E19+G19)/'Operational Data'!$G$21, "-") -> 0.03133439873
I20: =IF((E20+G20)>0,(E20+G20)/'Operational Data'!$G$21, "-") -> -
I21: =IF((E21+G21)>0,(E21+G21)/'Operational Data'!$G$21, "-") -> -
I22: =IF((E22+G22)>0,(E22+G22)/'Operational Data'!$G$21, "-") -> -
A23: Total Non-Hazardous Waste | E23: =SUM(E18:F22) -> 0 | G23: =SUM(G18:H22) -> 61799.376 | I23: =IF((E23+G23)>0,(E23+G23)/'Operational Data'!$G$21, "-") -> 0.1332810901
A24: TOTAL WASTE | E24: =+E23+E15 -> 10088.58 | G24: =+G23+G15 -> 96562.816 | I24: =IF((E24+G24)>0,(E24+G24)/'Operational Data'!$G$21, "-") -> 0.2300122628
A26: Operator’s comments :
A27: In 2021 APCr was sent primarily to landfill. During 2022 there has been a significant shift and APCr is now primarily recycled.
A31: =+A1 -> 2022 | B31: Annual Reporting of Water and Other Raw Material Usage
A32: Raw Material | E32: Usage | G32: Unit | H32: Specific Useage | J32: Unit
A33: Mains Water | E33: =+'Operational Data'!G42/1000 -> 176086 | G33: m3 | H33: =IF(E33>0,E33/'Operational Data'!$G$21,"-") -> 0.3797600485 | J33: m3/te
A34: Total Water | E34: 176086 | G34: m3 | H34: =IF(E34>0,E34/'Operational Data'!$G$21,"-") -> 0.3797600485 | J34: m3/te
A35: Lime / hydrated lime | B35: Lime / hydrated lime | C35: Lime / hydrated lime | D35: Lime / hydrated lime | E35: ='Operational Data'!G43 -> 3188000 | G35: kgs | H35: =IF(E35>0,E35/'Operational Data'!$G$21,"-") -> 6.875475816 | J35: kg/te
A36: Urea | B36: Urea | C36: Urea | D36: Urea | E36: ='Operational Data'!G44 -> 74000 | G36: kgs | H36: =IF(E36>0,E36/'Operational Data'!$G$21,"-") -> 0.1595938552 | J36: kg/te
A37: Activated carbon | B37: Activated carbon | C37: Activated carbon | D37: Activated carbon | E37: ='Operational Data'!G45 -> 281000 | G37: kgs | H37: =IF(E37>0,E37/'Operational Data'!$G$21,"-") -> 0.606025315 | J37: kg/te
A38: Caustic Soda | B38: Caustic Soda | C38: Caustic Soda | D38: Caustic Soda | E38: ='Operational Data'!G46 -> 168000 | G38: kgs | H38: =IF(E38>0,E38/'Operational Data'!$G$21,"-") -> 0.3623211848 | J38: kg/te
A39: Hydrochloric Acid | B39: Hydrochloric Acid | C39: Hydrochloric Acid | D39: Hydrochloric Acid | E39: ='Operational Data'!G47 -> 183000 | G39: kgs | H39: =IF(E39>0,E39/'Operational Data'!$G$21,"-") -> 0.3946712906 | J39: kg/te
A40: Sand | B40: Sand | C40: Sand | D40: Sand | E40: ='Operational Data'!G48 -> 3415000 | G40: kgs | H40: =IF(E40>0,E40/'Operational Data'!$G$21,"-") -> 7.36504075 | J40: kg/te
A41: Ammonia | B41: Ammonia | C41: Ammonia | D41: Ammonia | E41: ='Operational Data'!G49 -> 0 | G41: kgs | H41: =IF(E41>0,E41/'Operational Data'!$G$21,"-") -> - | J41: kg/te
A42: Salt | B42: Salt | C42: Salt | D42: Salt | E42: ='Operational Data'!G50 -> 4000 | G42: kgs | H42: =IF(E42>0,E42/'Operational Data'!$G$21,"-") -> 0.008626694876 | J42: kg/te
A43: Fuel oil | B43: Fuel oil | C43: Fuel oil | D43: Fuel oil | E43: ='Operational Data'!G51 -> 1338426 | G43: ltrs | H43: =IF(E43>0,E43/'Operational Data'!$G$21,"-") -> 2.886548179 | J43: ltrs/te
A45: Operator’s comments :
A46: No comments for this section.
A49: =+A31 -> 2022 | B49: Annual Reporting of other performance indicators
A50: Parameter | C50: Results by Line
C51: A1 | D51: A2 | E51: A3 | F51: A4 | G51: A5 | I51: Turbine 1 | J51: Turbine 2
A52: Operating hours for the year, hours | C52: 7134.71 | D52: 7250.94 | E52: 7491.24 | I52: 8135
A53: Number of periods of abnormal operation, qty. | C53: 1 | D53: 0 | E53: 1
A54: Cumulative hours of abnormal operation for this year, hours | C54: 0.5 | D54: 0 | E54: 2
A56: Operator’s comments :
A57: The number of periods of abnormal operation have reduded in 2022 from 2021.
A60: Signed: | G60: Date: | H60: 27th January 2023

Sheet Energy Form 1
A1: =+'Cover Page'!C39 -> 2022 | B1: Annual Reporting of Energy Usage/Export
A3: =+'Cover Page'!B31 -> Permit EPR/BR4551IC | F3: Operator: | G3: Kent Enviropower Limited
A5: Facility: | B5: =+'Cover Page'!B33:I33 -> Kent Enviropower Limited | F5: Form: | G5: Energy 1
A7: Reporting Period from: | D7: =+'Perf. Form 1'!D6:E6 -> 2022-01-01 | F7: to: | G7: =+'Perf. Form 1'!G6:H6 -> 2022-12-31
A9: Energy Source | D9: Energy Usage | F9: Unit | G9: Specific Useage (KWh/tonne incinerated
A10: Electricity Produced | D10: =+'Operational Data'!G24 -> 268538 | F10: MWh | G10: =+'Operational Data'!H24 -> 579.1488472
A11: Electricity Imported | D11: =+'Operational Data'!G27 -> 1939 | F11: MWh | G11: =+'Operational Data'!H27 -> 4.181790341
A12: Electricity Exported | D12: =+'Operational Data'!G25 -> 208713.88 | F12: MWh | G12: =+'Operational Data'!H25 -> 450.1277398
A13: Gas Oil | D13: 1184.51 | F13: tonnes | G13: 29.71
A14: Steam/hot water exported | D14: =+'Operational Data'!G30 -> 0 | F14: GWh | G14: =+'Operational Data'!H30 -> -
A18: Operator’s comments :
A19: Electricity generation has improved from 2021 and the use of gas oil has seen a significant improvement on 2021 from 2302 tonnes to 1184 tonnes.
A29: Signed: | G29: Date: | H29: 27th January 2023

Sheet Permit Compliance
A1: =+'Cover Page'!$B$29 -> Annual Performance Report 2022 | E1: =+'Cover Page'!$B$33 -> Kent Enviropower Limited
A3: Summary of Permit Compliance
A5: Compliance with permit limits for continuously monitored pollutants
A7: The plant met its emission limits as shown in the table below:
A8: Substance | C8: Percentage time compliant during operation | L8: Notes:
C9: Half-hourly limit | F9: Daily limit | L9: Report to 2 decimal places, i.e. xx.xx% Please provide a brief summary of each notification or non-compliance in the table (rather than just referring to notifications that were sent to the Regulator).
A10: Particulates | C10: 1 | F10: 1
A11: Oxides of nitrogen | C11: 0.9999 | F11: 1
A12: Sulphur dioxide | C12: 1 | F12: 1
A13: Carbon monoxide | C13: 0.9999 | F13: 1
A14: Total organic carbon | C14: 1 | F14: 1
A15: Hydrogen chloride | C15: 0.9999 | F15: 1
A16: Ammonia | C16: 1 | F16: 1
A19: Summary of any notifications or non-compliances under the permit
A20: Date | B20: Summary of notification or non-compliance [including Line/Reference] | E20: Reason | H20: Measures taken to prevent reoccurrence
A21: 2022-01-28 | B21: 089 Schedule 1 Power Cut | E21: Site turbine tripped | H21: No evidence of any environmental impact
A22: 2022-02-12 | B22: 025 L3 HCl abnormal operation | E22: Abatement system failure | H22: • A review of the planned maintenance on the compensators will be carried out. • The existing procedure will be reviewed to determine if any lessons can be learnt. • Investigate the possibility of auto switch over between fans on a low pressure alarm.
A23: 2022-06-03 | B23: 026 L1 SO2 abnormal operation | E23: Significant increase in moisture conditions | H23: The event occurred and ended by the end of the 30 minute period.
A24: 2022-10-25 | B24: 091 Schedule 5 Line 1 CO 10 min | E24: Function group not started | H24: Clear indication on the CEMS main control room screen of the number of allowable CO exceedances that are permitted between midnight to midnight has been included
A25: 2022-11-11 | B25: 092 Schedule 5 Line 2 NOx half hour | E25: The following contributed and require better control: - • Primary combustion temperatures. • Recirc fan control. • Primary air fan control. • Waste CV fluctuations. | H25: Nox control procedure reviewed and reissued on 4.1.2023 New procedure attached. No further action reqd.
A26: 2022-11-29 | B26: 093 Schedule 5 Line 1 PAC dosing | E26: Alarm categorisation was too low and considered not urgent. | H26: The alarm categorisation raised to "high" on the DCS system on 6th Jan 2023
A27: 2022-12-17 | B27: 094 Schedule 5 Line 2 HCl half hour | E27: At the time this report was issued this notification was still being investigated via root cause analysis and no reason or corrective actions are available.
A29: Summary of any complaints received and actions taken to resolve them.
A30: Date | B30: Summary of complaint [including Line/Reference] | E30: Reason * | H30: Measures taken to prevent reoccurrence
A31: 2022-01-28 | B31: Queues | C31: Queues | D31: Queues | E31: Substantiated Operator | F31: Substantiated Operator | G31: Substantiated Operator | H31: Customers arriving at the facility before the weighbridge was open. All customers contacted and advised of facility opening times.
A32: 2022-02-01 | B32: Queues | C32: Queues | D32: Queues | E32: Substantiated Operator | F32: Substantiated Operator | G32: Substantiated Operator
A33: 2022-03-31 | B33: Odour | C33: Odour | D33: Odour | E33: Substantiated Operator | F33: Substantiated Operator | G33: Substantiated Operator | H33: All odour complaints have been justified on wind direction information. Following any odour complaint the facility carries out an odour survey and checks all odour controls are in place and compliant. The complainant is then contacted (if details are avialable) and advised of any findings and very often invited to the facility for a site tour.
A34: 2022-04-03 | B34: Odour | C34: Odour | D34: Odour | E34: Substantiated Operator | F34: Substantiated Operator | G34: Substantiated Operator
A35: 2022-04-22 | B35: Queues | C35: Queues | D35: Queues | E35: Substantiated Operator | F35: Substantiated Operator | G35: Substantiated Operator | H35: Customers arriving at the facility before the weighbridge was open. All customers contacted and advised of facility opening times.
A36: 2022-05-27 | B36: Odour | C36: Odour | D36: Odour | E36: Substantiated Operator | F36: Substantiated Operator | G36: Substantiated Operator | H36: All odour complaints have been justified on wind direction information. Following any odour complaint the facility carries out an odour survey and checks all odour controls are in place and compliant. The complainant is then contacted (if details are avialable) and advised of any findings and very often invited to the facility for a site tour.
A37: 2022-06-08 | B37: Odour | C37: Odour | D37: Odour | E37: Substantiated Operator | F37: Substantiated Operator | G37: Substantiated Operator
A38: 2022-06-13 | B38: Odour | C38: Odour | D38: Odour | E38: Substantiated Operator | F38: Substantiated Operator | G38: Substantiated Operator
A39: 2022-07-09 | B39: Odour | C39: Odour | D39: Odour | E39: Substantiated Operator | F39: Substantiated Operator | G39: Substantiated Operator
A40: 2022-07-13 | B40: Odour | C40: Odour | D40: Odour | E40: Substantiated Operator | F40: Substantiated Operator | G40: Substantiated Operator
A41: 2022-07-13 | B41: Odour | C41: Odour | D41: Odour | E41: Substantiated Operator | F41: Substantiated Operator | G41: Substantiated Operator
A42: 2022-07-14 | B42: Odour | C42: Odour | D42: Odour | E42: Substantiated Operator | F42: Substantiated Operator | G42: Substantiated Operator
A43: 2022-08-11 | B43: Flies | C43: Flies | D43: Flies | E43: Not Substantiated Operator | F43: Not Substantiated Operator | G43: Not Substantiated Operator | H43: N/A
A44: 2022-08-16 | B44: Odour | C44: Odour | D44: Odour | E44: Substantiated Operator | F44: Substantiated Operator | G44: Substantiated Operator | H44: All odour complaints have been justified on wind direction information. Following any odour complaint the facility carries out an odour survey and checks all odour controls are in place and compliant. The complainant is then contacted (if details are avialable) and advised of any findings and very often invited to the facility for a site tour.
A45: 2022-08-25 | B45: Odour | C45: Odour | D45: Odour | E45: Substantiated Operator | F45: Substantiated Operator | G45: Substantiated Operator
A46: 2022-08-28 | B46: Odour | C46: Odour | D46: Odour | E46: Substantiated Operator | F46: Substantiated Operator | G46: Substantiated Operator
A47: 2022-09-10 | B47: Odour | C47: Odour | D47: Odour | E47: Substantiated Operator | F47: Substantiated Operator | G47: Substantiated Operator
A48: 2022-09-16 | B48: Odour | C48: Odour | D48: Odour | E48: Substantiated Operator | F48: Substantiated Operator | G48: Substantiated Operator
A49: 2022-09-17 | B49: Odour | C49: Odour | D49: Odour | E49: Substantiated Operator | F49: Substantiated Operator | G49: Substantiated Operator
A50: 2022-09-20 | B50: Odour | C50: Odour | D50: Odour | E50: Substantiated Operator | F50: Substantiated Operator | G50: Substantiated Operator
A51: 2022-09-25 | B51: Odour | C51: Odour | D51: Odour | E51: Substantiated Operator | F51: Substantiated Operator | G51: Substantiated Operator
A52: 2022-09-25 | B52: Odour | C52: Odour | D52: Odour | E52: Substantiated Operator | F52: Substantiated Operator | G52: Substantiated Operator
A53: 2022-12-02 | B53: Queues | C53: Queues | D53: Queues | E53: Substantiated Operator | F53: Substantiated Operator | G53: Substantiated Operator | H53: The facility was building up waste stocks for the Christmas period and increased the opening times to allow customers to deliver waste over night.
A54: 2022-12-02 | B54: Queues | C54: Queues | D54: Queues | E54: Substantiated Operator | F54: Substantiated Operator | G54: Substantiated Operator
A55: 2022-12-02 | B55: Queues | C55: Queues | D55: Queues | E55: Substantiated Operator | F55: Substantiated Operator | G55: Substantiated Operator
A56: 2022-12-02 | B56: Queues | C56: Queues | D56: Queues | E56: Substantiated Operator | F56: Substantiated Operator | G56: Substantiated Operator
A57: 2022-12-02 | B57: Queues | C57: Queues | D57: Queues | E57: Substantiated Operator | F57: Substantiated Operator | G57: Substantiated Operator
A58: 2022-12-05 | B58: Odour | C58: Odour | D58: Odour | E58: Substantiated Operator | F58: Substantiated Operator | G58: Substantiated Operator | H58: All odour complaints have been justified on wind direction information. Following any odour complaint the facility carries out an odour survey and checks all odour controls are in place and compliant. The complainant is then contacted (if details are avialable) and advised of any findings and very often invited to the facility for a site tour.
E59: * including whether substantiated by the operator or the EA

Sheet Improvements
A1: =+'Cover Page'!$B$29 -> Annual Performance Report 2022 | E1: =+'Cover Page'!$B$33 -> Kent Enviropower Limited
A3: Summary of Plant Improvements
A5: Summary of any efficiency improvements that have been completed within the year.
A6: Outside of planned outages plant availability has increased on previous years’ performance, whilst improvements to the plant control systems have led to greater plant stability, in turn reducing the need for manual intervention. Air ingress testing has been completed by an external contractor which has improved efficiency, to the point that FCC have purchased their own helium test equipment and are undertaking training of individuals in-house.
A12: Summary of any permit improvement conditions that have been completed within the year and the resulting environmental benefits.
A13: New BREF permit issued on 19th April 2022 as BR4551 IV version 012. The following conditions have been completed:- Improvement condition 1 (IC1) - completion of BAT conclusions. Improvement condition 5 (IC5) - no longer required to carry out assessment for energy efficiency.
A18: Summary of any changes to the plant or operating techniques which required a variation to the permit and a summary of the resulting environmental impact.
A19: New BREF permit issued on 19th April 2022 as BR4551 IV version 012. There are a significant number of emission limit value changes that shall require limit values to change during 2023.
A23: Summary of any other improvements made to the plant or planned to be made and a summary of the resulting environmental benefits.
A24: 1. Ongoing progress to replacing all standard lighting with low energy LED lighting. 2. A planned 'abatement' risk review is planned for 2023. 3. Currently planned to install vehicle electric charging points. 4. Planned installation of ID fan variable speed drives to reduce parasitic load and export more to the grid. 5. Investment in 2 x new front loaders and 1 x road sweeper with improved environmental performance (Low NOx engines).

Sheet Public Liasion
A1: =+'Cover Page'!$B$29 -> Annual Performance Report 2022 | E1: =+'Cover Page'!$B$33 -> Kent Enviropower Limited
A3: Details of Public & Stakeholder Liasion
A5: Summary of events held during the reporting year.
A6: Date | C6: Description
A7: 2022-02-01 | C7: The Facility has an active liaison group involving representatives from the following stakeholders: • Chairman - Mr Brian White • Environment Agency • 10 Local Residents • Councillors Walker and Hammond (TMBC members) • Councillors Robertson, Harwood and Daley (MBC members). Cllr Daley is also a member of KCC. • Councillors Homewood and Bird (KCC members) • Maidstone Borough Council Environmental Health, Wilcock • Councillors Walker and Balcombe (Aylesford Parish Council) • Tonbridge & Malling & Maidstone Borough Council Environmental Health • Kent County Council Waste Management • Kent Enviropower
A9: 2022-06-07
A11: 2022-10-17
A14: List of events planned for next year
A15: Date | C15: Description
A16: February 2023 | C16: Opposite are the months for the Liaison meetings planned for 2023. There have been some spaces that have become available at the meeting. Invites have been sent out to prospective new members and all spaces have now been filled.
A18: June 2023
A20: October 2023
A27: If you wish to be involved in the public liasion programme, please contact Brian White (Chairman) - Email: drbdwhite@yahoo.co.uk

Sheet CO2 N2O
A1: =+'Cover Page'!$B$29 -> Annual Performance Report 2022 | C1: =+'Cover Page'!$B$33 -> Kent Enviropower Limited
A3: Carbon dioxide emissions and biogenic content of waste inputs | E3: Notes:
A5: Carbon dioxide emissions (all types of plant)
A6: Annual mass of carbon dioxide released | B6: x tonnes | C6: 509512
A7: Annual mass of carbon dioxide released per tonne of waste burned | B7: x tonnes | C7: 1.1
A8: Annual mass of carbon dioxide released per MWh of energy exported | B8: x tonnes | C8: 2.44
A9: Description of how annual carbon dioxide mass emission has been calculated | B9: CO2 is obtained from a QAL 2 calibrated CEMS | E9: Note 1: Where available, data from CO2 CEMS should be used. Otherwise, where no CEMS data is available, a suitable emissions factor should be used based on the tonnage of waste burned e.g.0.992 tCO2/t waste as per Tolvik report 2021, or other justified emissions factor - refer to embedded Environment Agency guidance note above or updated version for suitable descriptive text.
A11: Nitrous oxide emissions (only plants which use ammonia or urea to abate NOx emissions)
A12: Annual mass emissions of nitrous oxide | B12: x tonnes | C12: 6.941
A13: Description of how annual nitrous oxide mass emission has been calculated | B13: N2O is obtained from a QAL 2 calibrated CEMS | E13: Note 2: Where available, data from N2O CEMS should be used, or if no CEMS data is available, from periodic monitoring. Otherwise, a suitable emissions factor should be used based on the tonnage of waste burned e.g. 0.0981 kgN20/t waste as per 2021 Pollution Inventory data for plants with urea-based SNCR - refer to embedded Environment Agency guidance note above or updated version for suitable descriptive text.
A14: Total annual carbon dioxide and nitrous oxide emissions as carbon dioxide equivalent (whereby 1 t nitrous oxide is equivalent to 298 t carbon dioxide) | B14: x tonnes CO2e | C14: 2068
A16: Biogenic fraction of the waste and biogenic CO2 emissions (only plants burning residual municipal waste, refuse derived fuel or solid recovered fuel)
A17: Yearly average biogenic percentage of the waste by net calorific value (NCV) | B17: x % | C17: 51.47
A18: Description of how biogenic NCV percentage has been calculated or estimated | B18: Waste feed analysis carried out annually (these figures are from the 2022 report). The % recorded is all wastes (recorded at 99.64%) minus the following non biogenic waste:- Plastic film 11.37% Dense plastic 25.55% Note: Textiles 11.25% - This calculation assumed textiles are 100% biogenic. | E18: Note 3: Where available, data from waste sampling should be used; otherwise, an estimated figure with justification can be used, or a figure assumed on the basis of a national average e.g. 2017 WRAP data for residual waste of 51.8% biogenic energy content - refer to embedded Environment Agency guidance note above or updated version for suitable descriptive text, quoting standards where relevant.
A19: Percentage of total carbon dioxide emissions arising from biogenic waste | B19: x % | C19: 51.47 | F19: newsnow
A20: Description of how percentage biogenic carbon dioxide emissions have been calculated | B20: Used the same figure as the biogenic NCV %. Facility does not have BIOMA but shall carry out C14 testing during the first half year of 2023. | E20: Note 4: Examples include direct measurement via C14 method or BIOMA software - refer to embedded Environment Agency guidance note above or updated version for suitable descriptive text, quoting standards where relevant. Otherwise, as an approximation (and in lieu of any more accurate metrics which may be developed in future), the measured or estimated biogenic fraction by net calorific value can be assumed to be the same as the biogenic CO2 fraction of the total CO2 emissions from the plant.
A22: Comments:
A23: CO2 and N2O have come directly from the continuous emission monitoring system (CEMS) and are both QAL 2 caibrated with calibration functions in place.

Sheet Residue Quality
A1: =+'Cover Page'!$B$29 -> Annual Performance Report 2022 | E1: =+'Cover Page'!$B$33 -> Kent Enviropower Limited
A3: Residue Quality Monitoring Requirements
A5: Summary of monitoring undertaken and compliance
A6: Waste Description: Bottom Ash Parameter to be measured : TOC or LOI, Metals (Cd, Tl, Hg, Pb, Cr, Cu, Mn, Ni, As, Co, V, Sb, Zn) and their compounds and the total soluble fraction of these metals, dioxins/ furans and dioxin like PCB’s. Sampling and analysis as per Agency ash sampling protocol. Frequency: Quarterly (with the exception of the total soluble fraction which shall be sampled and analysed before the use of a new disposal or recycling route). Hazard assessment undertaken twice a month (24 samples a year)
A9: Commentary on any specific events
A10: Date & Event | C10: Description
A11: NA | C11: NA
A23: Residue Quality Monitoring Results
A24: Parameter (unit) | C24: Limit | D24: Normal Operation
D25: Bottom ash | F25: APC Residues
A26: Loss on Ignition (average %) | C26: Not limit set | D26: 1.67 *
A27: Total Organic Carbon (average %) | C27: <3% | D27: 1.12
A28: No. of Assessments Undertaken | C28: --- | D28: 28* | F28: 4
A29: No. of Hazardous Results | C29: --- | D29: 0
A31: Comments :
A32: * The new permit variation BREF (BR4551IC version 012) no longer requires LOI to be recorded. ** This equates to 24 IBA hazard assessments and 4 quarterly reports.

Sheet Water
A1: =+'Cover Page'!$B$29 -> Annual Performance Report 2022 | E1: =+'Cover Page'!$B$33 -> Kent Enviropower Limited
A3: Emissions to Water
A5: Summary of monitoring undertaken and compliance
A6: Parameters for which reports shall be made, in accordance with conditions of the Consent to the Discharge of Trade Effluent issued by Southern Water, are listed below and are measured monthly. These are not Environmental Permit limits but limits for disposal of effluent water discharged down sewage drains.
A13: Commentary on any specific events
A14: Date & Event | C14: Description
A15: 2022-03-01 | C15: High suspended solids recorded Investigation identified that new sample point 7.3 does not always contain enough water (non representative sample) and solids being sampled. New sampling point has been identified and sampling procedure has been rewritten.
A17: 2022-07-01
A22: Emissions to Water / Sewer
A23: Parameter | D23: Monitoring Frequency | F23: Limit | G23: Target | H23: Max. | I23: Average
A24: Arsenic | D24: monthly | F24: 1 | G24: 1 | H24: 0.02 | I24: 0.008333333333
A25: COD shaken | D25: monthly | F25: 800 | G25: 800 | H25: 112 | I25: 25.91666667
A26: Chromium | D26: monthly | F26: 1 | G26: 1 | H26: 0.1 | I26: 0.025
A27: Copper | D27: monthly | F27: 1 | G27: 1 | H27: 0.3 | I27: 0.06166666667
A28: Fluoride | D28: monthly | F28: 2 | G28: 2 | H28: 0.7 | I28: 0.2758333333
A29: Lead | D29: monthly | F29: 1 | G29: 1 | H29: 0.2 | I29: 0.02333333333
A30: Molybdenum | D30: monthly | F30: 1 | G30: 1 | H30: 0.03 | I30: 0.009166666667
A31: Nickel | D31: monthly | F31: 1 | G31: 1 | H31: 0.1 | I31: 0.01583333333
A32: Selenium | D32: monthly | F32: 1 | G32: 1 | H32: 0.01 | I32: 0.0075
A33: Suspended solids | D33: monthly | F33: 200 | G33: 200 | H33: 837 | I33: 115.0833333
A34: Sulphate | D34: monthly | F34: 500 | G34: 500 | H34: 285 | I34: 69
A35: Zinc | D35: monthly | F35: 3 | G35: 3 | H35: 1.3 | I35: 0.1633333333
A36: pH | D36: monthly | H36: 7.5 | I36: 5.25

Sheet Air (periodic)
A1: =+'Cover Page'!$B$29 -> Annual Performance Report 2022 | E1: =+'Cover Page'!$B$33 -> Kent Enviropower Limited
A3: Emissions to Air (periodically monitored)
A5: Summary of monitoring undertaken, standards used and compliance | M5: Notes:
A6: Samples taken as required by the new permit variation BREF BR4551IC version 12 | M6: Template may require adjustment for any bespoke monitoring requirements of permit.
A9: Results of emissions to air that are periodically monitored
A10: Substance | C10: Ref. Period | D10: Emission Limit Value | F10: Average | M10: User to add additional tables as necessary, depending on whether quarterly or bi-annual reporting is required for the compliance year
F11: A1 | G11: A2 | H11: A3 | I11: A4 | J11: A5
A12: Cadmium & Thallium | C12: 1 hr | D12: 0.05 mg/m3 | F12: 0.00135 | G12: 0.0015 | H12: 0.00165
A13: Heavy Metals | C13: 1 hr | D13: 0.5 mg/m3 | F13: 0.1195 | G13: 0.1385 | H13: 0.183
A14: Mercury | C14: 1 hr | D14: 0.05 mg/m3 | F14: 0.001 | G14: 0.0014 | H14: 0.0012
A15: Hydrogen Fluoride | C15: 1 hr | D15: 1 mg/m3 | F15: 0.2435 | G15: 0.0725 | H15: 0.0545
A16: Nitrous Oxide | C16: 4 hrs | D16: None set mg/m3 | F16: 20.1 | G16: 15.05 | H16: 15.65
A17: Dioxins / furans (I-TEQ)6 | C17: 6 hrs | D17: 0.1 µg/m3 | F17: 0.0375 | G17: 0.032 | H17: 0.027
A18: Dioxins / furans (WHO-TEQ Humans / Mammals) 6 | C18: 6 hrs | D18: None set µg/m3 | F18: 0.038 | G18: 0.034 | H18: 0.03
A19: Dioxins / furans (WHO-TEQ Fish) 6 | C19: 6 hrs | D19: None set µg/m3 | F19: 0.0315 | G19: 0.028 | H19: 0.024
A20: Dioxins / furans (WHO-TEQ Birds) 6 | C20: 6 hrs | D20: None set µg/m3 | F20: 0.04 | G20: 0.0355 | H20: 0.0285
A21: Dioxin-like PCBs (WHO-TEQ Humans / Mammals)6 | C21: 6 hrs | D21: None set µg/m3 | F21: 0.0026 | G21: 0.00245 | H21: 0.00155
A22: Dioxin-like PCBs (WHO-TEQ Fish)6 | C22: 6 hrs | D22: None set µg/m3 | F22: 0.0001155 | G22: 0.000114 | H22: 7.3e-05
A23: Dioxin-like PCBs (WHO-TEQ Birds)6 | C23: 6 hrs | D23: None set µg/m3 | F23: 0.0226 | G23: 0.00535 | H23: 0.00325
A24: PAHs (DEFRA 16) | C24: 6 hrs | D24: None set µg/m3 | F24: 0.15 | G24: 0.23 | H24: 0.21
A25: Anthanthrene | C25: 6 hrs | D25: None set µg/m3 | F25: 0.0015 | G25: 0.003 | H25: 0.0021
A26: Benzo{a}anthracene | C26: 6 hrs | D26: None set µg/m3 | F26: 0.0045 | G26: 0.003 | H26: 0.0021
A27: Benzo[b]fluoranthene | C27: 6 hrs | D27: None set µg/m3 | F27: 0.0042 | G27: 0.003 | H27: 0.0021
A28: Benzo[k]fluoranthene | C28: 6 hrs | D28: None set µg/m3 | F28: 0.0022 | G28: 0.003 | H28: 0.0021
A29: Benzo[b]naph(2,1-d}thiophene | C29: 6 hrs | D29: None set µg/m3 | F29: 0.0051 | G29: 0.01 | H29: 0.0068
A30: Benzo[c]phenanthrene | C30: 6 hrs | D30: None set µg/m3 | F30: 0.0016 | G30: 0.003 | H30: 0.0021
A31: Benzo[ghi]perylene | C31: 6 hrs | D31: None set µg/m3 | F31: 0.0015 | G31: 0.003 | H31: 0.0021
A32: Benzo[a]pyrene | C32: 6 hrs | D32: None set µg/m3 | F32: 0.0028 | G32: 0.003 | H32: 0.0021
A33: Cholanthrene | C33: 6 hrs | D33: None set µg/m3 | F33: 0.0015 | G33: 0.003 | H33: 0.0021
A34: Chrysene | C34: 6 hrs | D34: None set µg/m3 | F34: 0.0062 | G34: 0.0037 | H34: 0.024
A35: Cyclopenta(cd)pyrene | C35: 6 hrs | D35: None set µg/m3 | F35: 0.0034 | G35: 0.003 | H35: 0.0021
A36: Dibenzo[ah]anthracene | C36: 6 hrs | D36: None set µg/m3 | F36: 0.0015 | G36: 0.003 | H36: 0.0021
A37: Dibenzo[ai]pyrene | C37: 6 hrs | D37: None set µg/m3 | F37: 0.0015 | G37: 0.003 | H37: 0.0021
A38: Fluoranthene | C38: 6 hrs | D38: None set µg/m3 | F38: 0.036 | G38: 0.045 | H38: 0.053
A39: Indeno[1,2,3-cd]pyrene | C39: 6 hrs | D39: None set µg/m3 | F39: 0.0015 | G39: 0.003 | H39: 0.0021
A40: Naphthalene | C40: 6 hrs | D40: None set µg/m3 | F40: 0.077 | G40: 0.14 | H40: 0.1
A41: Comments :
A42: All determinants passed periodic testing.

Sheet Air (CEMS)
A1: =+'Cover Page'!$B$29 -> Annual Performance Report 2022 | I1: =+'Cover Page'!$B$33 -> Kent Enviropower Limited
A3: Emissions to Air (continously monitored)
P4: Notes:
A5: Summary of monitoring undertaken, standards used and compliance | P5: Template may require adjustment for any bespoke monitoring requirements of permit
A6: Monitoring is underatken as required by permit BR4551IC version 12 and all determinants are from QAL 2 calibrated CEMS. | P6: Report to 2 decimal places, i.e. xx.xx%
A11: Results of emissions to air that are continuously monitored (maximum and average values for each line)
A12: Substance | B12: Reference Period | C12: Emission Limit Value | D12: A1 | F12: A2 | H12: A3
D13: Max. | E13: Avg. | F13: Max. | G13: Avg. | H13: Max. | I13: Avg.
A14: Oxides of nitrogen | B14: Daily mean | C14: 200 mg/m3 | D14: 166.4 | E14: 126.9 | F14: 168.1 | G14: 145.9 | H14: 166.9 | I14: 118.9
B15: ½ hourly mean | C15: 400 mg/m3 | D15: 310.5 | E15: 127.5 | F15: 465.6 | G15: 145.9 | H15: 326.4 | I15: 131.5
A16: Particulates | B16: Daily mean | C16: 10 mg/m3 | D16: 4.6 | E16: 1.1 | F16: 4.2 | G16: 1.24 | H16: 4.3 | I16: 1.05
B17: ½ hourly mean | C17: 30 mg/m3 | D17: 20.5 | E17: 1.09 | F17: 16.9 | G17: 1.22 | H17: 14.2 | I17: 1.36
A18: Total Organic Carbon | B18: Daily mean | C18: 10 mg/m3 | D18: 1.7 | E18: 0.4 | F18: 1.8 | G18: 0.29 | H18: 4 | I18: 0.4
B19: * ½ hourly mean | C19: * 10 mg/m3 | D19: 1292.9 | E19: 0.5 | F19: 62.5 | G19: 0.29 | H19: 176.9 | I19: 0.43
A20: Hydrogen chloride | B20: Daily mean | C20: 10 mg/m3 | D20: 8.2 | E20: 3.28 | F20: 7.7 | G20: 4.96 | H20: 8.3 | I20: 4.1
B21: ½ hourly mean | C21: 60 mg/m3 | D21: 38.7 | E21: 3.26 | F21: 61.3 | G21: 4.99 | H21: 151 | I21: 4.53
A22: Sulphur dioxide | B22: Daily mean | C22: 50 mg/m3 | D22: 5.3 | E22: 0.22 | F22: 2.8 | G22: 0.8 | H22: 2.8 | I22: 0.46
B23: ½ hourly mean | C23: 200 mg/m3 | D23: 232.8 | E23: 0.25 | F23: 188 | G23: 0.81 | H23: 38.6 | I23: 0.47
A24: Carbon monoxide | B24: Daily mean | C24: 50 mg/m3 | D24: 35.8 | E24: 4.82 | F24: 21.8 | G24: 3.16 | H24: 18.2 | I24: 5.46
B25: 95%ile 10-min avg | C25: 150 mg/m3 | D25: 15.15 | E25: N/A | F25: 9.32 | G25: N/A | H25: 28.9 | I25: N/A
A26: Ammonia | B26: Daily mean | C26: 10 mg/m3 | D26: 2 | E26: 0.17 | F26: 0.6 | G26: 0.1 | H26: 0.9 | I26: 0.29
A27: * = delete or amend as appropriate
A28: Comments :
A29: * TOC is 97% of all half hour averages in a rolling year and this has been compliant for all periods.

Sheet HCl
A1: =+'Cover Page'!$B$29 -> Annual Performance Report 2022 | E1: =+'Cover Page'!$B$33 -> Kent Enviropower Limited
A3: Monitoring of Hydrogen Chloride emissions | D3: Whole Installation | G3: See Notes in Cell Q3 | J3: =+A3 -> Monitoring of Hydrogen Chloride emissions | N3: Per Combustion Line | Q3: Notes:
Q4: User to add logic to complete Whole installation, Table A5:G18. From the data in Per Combustion Line, Table J6:O79, subject to No. of lines installed
A5: mg/Nm3 | B5: 1/2 Hourly Reference Periods | E5: Daily Reference Periods
A6: =+'Cover Page'!C39 -> 2022 | B6: 1/2 hourly HCl ELV | C6: Monthly 1/2 hourly mean | D6: Highest 1/2 hourly maximum | E6: Daily HCl ELV | F6: Monthly daily mean | G6: Highest daily maximum | J6: =+A6 -> 2022 | K6: mg/Nm3 | L6: Monthly 1/2 hourly mean | M6: Monthly 1/2 hourly maximum | N6: Monthly daily mean | O6: Monthly daily maximum
A7: Jan | B7: 60 | C7: 4.63 | D7: 26.4 | E7: 10 | F7: 4.56 | G7: 8.3 | J7: A1 | K7: Jan | L7: 3.9 | M7: 26.4 | N7: 3.8 | O7: 7.9
A8: Feb | B8: 60 | C8: 5.23 | D8: 151 | E8: 10 | F8: 5.03 | G8: 8.2 | K8: Feb | L8: 4.1 | M8: 38.7 | N8: 4 | O8: 8.2
A9: Mar | B9: 60 | C9: 3.83 | D9: 37.5 | E9: 10 | F9: 2.3 | G9: 5.7 | K9: Mar | L9: 2.3 | M9: 37.5 | N9: 2.4 | O9: 5.7 | Q9: Whole Installation table A5:G18:
A10: Apr | B10: 60 | C10: 4.1 | D10: 24.6 | E10: 10 | F10: 4.13 | G10: 6.3 | K10: Apr | L10: 3.6 | M10: 24.6 | N10: 3.6 | O10: 6.3 | Q10: Mean: for 1/2 hourly and daily periods calculate mean of values across all operational combustion lines for the month
A11: May | B11: 60 | C11: 4.53 | D11: 16.2 | E11: 10 | F11: 4.6 | G11: 7.7 | K11: May | L11: 3.5 | M11: 16.2 | N11: 3.6 | O11: 6.2
A12: Jun | B12: 60 | C12: 3.83 | D12: 17.8 | E12: 10 | F12: 3.83 | G12: 5.8 | K12: Jun | L12: 2.6 | M12: 17.8 | N12: 2.6 | O12: 3.7
A13: Jul | B13: 60 | C13: 4.86 | D13: 28.2 | E13: 10 | F13: 4.93 | G13: 7.3 | K13: Jul | L13: 4.2 | M13: 20.1 | N13: 4.4 | O13: 7.2 | Q13: Maximum: for 1/2 hourly and daily periods use the highest value across all operational combustion lines for the month
A14: Aug | B14: 60 | C14: 4.9 | D14: 19.4 | E14: 10 | F14: 4.93 | G14: 5.9 | K14: Aug | L14: 4.2 | M14: 10.6 | N14: 4.3 | O14: 5.8
A15: Sep | B15: 60 | C15: 4.4 | D15: 30.3 | E15: 10 | F15: 4.36 | G15: 6.4 | K15: Sep | L15: 3.8 | M15: 14.1 | N15: 3.8 | O15: 6.1
A16: Oct | B16: 60 | C16: 3.9 | D16: 14.7 | E16: 10 | F16: 3.93 | G16: 6.1 | K16: Oct | L16: 2.9 | M16: 14.7 | N16: 2.9 | O16: 5.4
A17: Nov | B17: 60 | C17: 4.1 | D17: 34.7 | E17: 10 | F17: 4.06 | G17: 6.5 | K17: Nov | L17: 2.9 | M17: 15.3 | N17: 2.8 | O17: 6
A18: Dec | B18: 60 | C18: 2.83 | D18: 61.3 | E18: 10 | F18: 2.73 | G18: 4.7 | K18: Dec | L18: 1.2 | M18: 4.2 | N18: 1.2 | O18: 1.8
K19: Annual | L19: =AVERAGE(L7:L18) -> 3.266666667 | M19: =MAX(M7:M18) -> 38.7 | N19: =AVERAGE(N7:N18) -> 3.283333333 | O19: =MAX(O7:O18) -> 8.2
J21: =+A6 -> 2022 | K21: mg/Nm3 | L21: Monthly 1/2 hourly mean | M21: Monthly 1/2 hourly maximum | N21: Monthly daily mean | O21: Monthly daily maximum
J22: A2 | K22: Jan | L22: 4.7 | M22: 23.1 | N22: 4.6 | O22: 7.4
K23: Feb | L23: 5.9 | M23: 25.9 | N23: 5.8 | O23: 7.7
K24: Mar | L24: 4.5 | M24: 12.7 | N24: 4.5 | O24: 5.5
K25: Apr | L25: 5.2 | M25: 22 | N25: 5.3 | O25: 6.2
K26: May | L26: 5.2 | M26: 15.4 | N26: 5.3 | O26: 6.3
K27: Jun | L27: 4.7 | M27: 12 | N27: 4.7 | O27: 5.8
K28: Jul | L28: 5.4 | M28: 28.2 | N28: 5.4 | O28: 5.7
K29: Aug | L29: 5.4 | M29: 19.4 | N29: 5.4 | O29: 5.7
K30: Sep | L30: 5.2 | M30: 30.3 | N30: 5.1 | O30: 6.4
K31: Oct | L31: 4.8 | M31: 10.4 | N31: 4.9 | O31: 6.1
K32: Nov | L32: 4.9 | M32: 34.7 | N32: 4.9 | O32: 6.5
K33: Dec | L33: 4 | M33: 61.3 | N33: 3.7 | O33: 4.7
K34: Annual | L34: =AVERAGE(L22:L33) -> 4.991666667 | M34: =MAX(M22:M33) -> 61.3 | N34: =AVERAGE(N22:N33) -> 4.966666667 | O34: =MAX(O22:O33) -> 7.7
J36: =+A6 -> 2022 | K36: mg/Nm3 | L36: Monthly 1/2 hourly mean | M36: Monthly 1/2 hourly maximum | N36: Monthly daily mean | O36: Monthly daily maximum
J37: A3 | K37: Jan | L37: 5.3 | M37: 23.4 | N37: 5.3 | O37: 8.3
K38: Feb | L38: 5.7 | M38: 151 | N38: 5.3 | O38: 7.7
K39: Mar | L39: 4.7 | M39: 7.9 | N39: 0 | O39: 0
K40: Apr | L40: 3.5 | M40: 15.3 | N40: 3.5 | O40: 5.6
K41: May | L41: 4.9 | M41: 12.8 | N41: 4.9 | O41: 7.7
K42: Jun | L42: 4.2 | M42: 10.1 | N42: 4.2 | O42: 5.7
K43: Jul | L43: 5 | M43: 12.5 | N43: 5 | O43: 7.3
K44: Aug | L44: 5.1 | M44: 12.8 | N44: 5.1 | O44: 5.9
K45: Sep | L45: 4.2 | M45: 8.5 | N45: 4.2 | O45: 5.6
K46: Oct | L46: 4 | M46: 9.7 | N46: 4 | O46: 5
K47: Nov | L47: 4.5 | M47: 8.8 | N47: 4.5 | O47: 5.6
A48: Comments : | K48: Dec | L48: 3.3 | M48: 10.5 | N48: 3.3 | O48: 4.6
A49: No comments to add | K49: Annual | L49: =AVERAGE(L37:L48) -> 4.533333333 | M49: =MAX(M37:M48) -> 151 | N49: =AVERAGE(N37:N48) -> 4.108333333 | O49: =MAX(O37:O48) -> 8.3
J51: =+A6 -> 2022 | K51: mg/Nm3 | L51: Monthly 1/2 hourly mean | M51: Monthly 1/2 hourly maximum | N51: Monthly daily mean | O51: Monthly daily maximum
J52: A4 | K52: Jan
K53: Feb
K54: Mar
K55: Apr
K56: May
K57: Jun
K58: Jul
K59: Aug
K60: Sep
K61: Oct
K62: Nov
K63: Dec
K64: Annual | L64: =AVERAGE(L52:L63) ->  | M64: =MAX(M52:M63) -> 0 | N64: =AVERAGE(N52:N63) ->  | O64: =MAX(O52:O63) -> 0
J66: =+A6 -> 2022 | K66: mg/Nm3 | L66: Monthly 1/2 hourly mean | M66: Monthly 1/2 hourly maximum | N66: Monthly daily mean | O66: Monthly daily maximum
J67: A5 | K67: Jan
K68: Feb
K69: Mar
K70: Apr
K71: May
K72: Jun
K73: Jul
K74: Aug
K75: Sep
K76: Oct
K77: Nov
K78: Dec
K79: Annual | L79: =AVERAGE(L67:L78) ->  | M79: =MAX(M67:M78) -> 0 | N79: =AVERAGE(N67:N78) ->  | O79: =MAX(O67:O78) -> 0

Sheet SO2
A1: =+'Cover Page'!$B$29 -> Annual Performance Report 2022 | E1: =+'Cover Page'!$B$33 -> Kent Enviropower Limited
A3: Monitoring of Sulphur dioxide emissions | D3: Whole Installation | G3: See Notes in Cell Q3 | J3: =+A3 -> Monitoring of Sulphur dioxide emissions | N3: Per Combustion Line | Q3: Notes:
Q4: User to add logic to complete Whole installation, Table A5:G18. From the data in Per Combustion Line, Table J6:O79, subject to No. of lines installed
A5: mg/Nm3 | B5: 1/2 Hourly Reference Periods | E5: Daily Reference Periods
A6: =+'Cover Page'!C39 -> 2022 | B6: 1/2 hourly SO2 ELV | C6: Monthly 1/2 hourly mean | D6: Highest 1/2 hourly maximum | E6: Daily SO2 ELV | F6: Monthly daily mean | G6: Highest daily maximum | J6: =+A6 -> 2022 | K6: mg/Nm3 | L6: Monthly 1/2 hourly mean | M6: Monthly 1/2 hourly maximum | N6: Monthly daily mean | O6: Monthly daily maximum
A7: Jan | B7: 200 | C7: 0.2 | D7: 14.5 | E7: 50 | F7: 0.2 | G7: 0.6 | J7: A1 | K7: Jan | L7: 0.1 | M7: 9 | N7: 0.1 | O7: 0.3
A8: Feb | B8: 200 | C8: 0.23 | D8: 26.5 | E8: 50 | F8: 0.23 | G8: 0.7 | K8: Feb | L8: 0.3 | M8: 26.5 | N8: 0.3 | O8: 0.7
A9: Mar | B9: 200 | C9: 0.23 | D9: 18.5 | E9: 50 | F9: 0.2 | G9: 1 | K9: Mar | L9: 0.2 | M9: 18.1 | N9: 0.2 | O9: 0.4 | Q9: Whole Installation table A5:G18:
A10: Apr | B10: 200 | C10: 0.76 | D10: 59.5 | E10: 50 | F10: 0.76 | G10: 2.8 | K10: Apr | L10: 0.5 | M10: 35.6 | N10: 0.5 | O10: 2.3 | Q10: Mean: for 1/2 hourly and daily periods calculate mean of values across all operational combustion lines for the month
A11: May | B11: 200 | C11: 0.6 | D11: 149.4 | E11: 50 | F11: 0.56 | G11: 2 | K11: May | L11: 0.4 | M11: 149.4 | N11: 0.3 | O11: 2
A12: Jun | B12: 200 | C12: 0.6 | D12: 232.8 | E12: 50 | F12: 0.6 | G12: 5.3 | K12: Jun | L12: 0.4 | M12: 232.8 | N12: 0.4 | O12: 5.3
A13: Jul | B13: 200 | C13: 0.63 | D13: 188 | E13: 50 | F13: 0.56 | G13: 1.9 | K13: Jul | L13: 0.3 | M13: 79.9 | N13: 0.3 | O13: 1.9 | Q13: Maximum: for 1/2 hourly and daily periods use the highest value across all operational combustion lines for the month
A14: Aug | B14: 200 | C14: 0.46 | D14: 18.2 | E14: 50 | F14: 0.46 | G14: 1.7 | K14: Aug | L14: 0.1 | M14: 9.2 | N14: 0.1 | O14: 0.4
A15: Sep | B15: 200 | C15: 0.56 | D15: 28 | E15: 50 | F15: 0.56 | G15: 1.7 | K15: Sep | L15: 0.1 | M15: 14.3 | N15: 0.1 | O15: 0.4
A16: Oct | B16: 200 | C16: 0.63 | D16: 183.4 | E16: 50 | F16: 0.56 | G16: 2.1 | K16: Oct | L16: 0.4 | M16: 183.4 | N16: 0.2 | O16: 2.1
A17: Nov | B17: 200 | C17: 0.76 | D17: 36.8 | E17: 50 | F17: 0.76 | G17: 2.2 | K17: Nov | L17: 0.1 | M17: 11.9 | N17: 0.1 | O17: 0.3
A18: Dec | B18: 200 | C18: 0.46 | D18: 21.5 | E18: 50 | F18: 0.46 | G18: 1.5 | K18: Dec | L18: 0.1 | M18: 11.8 | N18: 0.1 | O18: 0.6
K19: Annual | L19: =AVERAGE(L7:L18) -> 0.25 | M19: =MAX(M7:M18) -> 232.8 | N19: =AVERAGE(N7:N18) -> 0.225 | O19: =MAX(O7:O18) -> 5.3
J21: =+A6 -> 2022 | K21: mg/Nm3 | L21: Monthly 1/2 hourly mean | M21: Monthly 1/2 hourly maximum | N21: Monthly daily mean | O21: Monthly daily maximum
J22: A2 | K22: Jan | L22: 0.3 | M22: 7.5 | N22: 0.3 | O22: 0.6
K23: Feb | L23: 0.3 | M23: 20.4 | N23: 0.3 | O23: 0.7
K24: Mar | L24: 0.4 | M24: 4.7 | N24: 0.4 | O24: 1
K25: Apr | L25: 1.1 | M25: 59.5 | N25: 1.1 | O25: 2.8
K26: May | L26: 0.8 | M26: 15.3 | N26: 0.8 | O26: 1.3
K27: Jun | L27: 0.9 | M27: 30.7 | N27: 0.9 | O27: 1.5
K28: Jul | L28: 1.1 | M28: 188 | N28: 0.9 | O28: 1.8
K29: Aug | L29: 0.7 | M29: 18.2 | N29: 0.7 | O29: 1.7
K30: Sep | L30: 1 | M30: 28 | N30: 1 | O30: 1.7
K31: Oct | L31: 1 | M31: 27.1 | N31: 1 | O31: 1.7
K32: Nov | L32: 1.4 | M32: 36.8 | N32: 1.4 | O32: 2.2
K33: Dec | L33: 0.8 | M33: 16.3 | N33: 0.8 | O33: 1.5
K34: Annual | L34: =AVERAGE(L22:L33) -> 0.8166666667 | M34: =MAX(M22:M33) -> 188 | N34: =AVERAGE(N22:N33) -> 0.8 | O34: =MAX(O22:O33) -> 2.8
J36: =+A6 -> 2022 | K36: mg/Nm3 | L36: Monthly 1/2 hourly mean | M36: Monthly 1/2 hourly maximum | N36: Monthly daily mean | O36: Monthly daily maximum
J37: A3 | K37: Jan | L37: 0.2 | M37: 14.5 | N37: 0.2 | O37: 0.5
K38: Feb | L38: 0.1 | M38: 9.2 | N38: 0.1 | O38: 0.4
K39: Mar | L39: 0.1 | M39: 0.5 | N39: 0 | O39: 0
K40: Apr | L40: 0.7 | M40: 38.6 | N40: 0.7 | O40: 2.8
K41: May | L41: 0.6 | M41: 21.9 | N41: 0.6 | O41: 1
K42: Jun | L42: 0.5 | M42: 23 | N42: 0.5 | O42: 1.1
K43: Jul | L43: 0.5 | M43: 14.9 | N43: 0.5 | O43: 1
K44: Aug | L44: 0.6 | M44: 9.9 | N44: 0.6 | O44: 1.2
K45: Sep | L45: 0.6 | M45: 17.7 | N45: 0.6 | O45: 1.2
K46: Oct | L46: 0.5 | M46: 15.3 | N46: 0.5 | O46: 0.9
K47: Nov | L47: 0.8 | M47: 19.8 | N47: 0.8 | O47: 1.4
A48: Comments : | K48: Dec | L48: 0.5 | M48: 21.5 | N48: 0.5 | O48: 1.2
A49: No comments to add | K49: Annual | L49: =AVERAGE(L37:L48) -> 0.475 | M49: =MAX(M37:M48) -> 38.6 | N49: =AVERAGE(N37:N48) -> 0.4666666667 | O49: =MAX(O37:O48) -> 2.8
J51: =+A6 -> 2022 | K51: mg/Nm3 | L51: Monthly 1/2 hourly mean | M51: Monthly 1/2 hourly maximum | N51: Monthly daily mean | O51: Monthly daily maximum
J52: A4 | K52: Jan
K53: Feb
K54: Mar
K55: Apr
K56: May
K57: Jun
K58: Jul
K59: Aug
K60: Sep
K61: Oct
K62: Nov
K63: Dec
K64: Annual | L64: =AVERAGE(L52:L63) ->  | M64: =MAX(M52:M63) -> 0 | N64: =AVERAGE(N52:N63) ->  | O64: =MAX(O52:O63) -> 0
J66: =+A6 -> 2022 | K66: mg/Nm3 | L66: Monthly 1/2 hourly mean | M66: Monthly 1/2 hourly maximum | N66: Monthly daily mean | O66: Monthly daily maximum
J67: A5 | K67: Jan
K68: Feb
K69: Mar
K70: Apr
K71: May
K72: Jun
K73: Jul
K74: Aug
K75: Sep
K76: Oct
K77: Nov
K78: Dec
K79: Annual | L79: =AVERAGE(L67:L78) ->  | M79: =MAX(M67:M78) -> 0 | N79: =AVERAGE(N67:N78) ->  | O79: =MAX(O67:O78) -> 0

Sheet NOx
A1: =+'Cover Page'!$B$29 -> Annual Performance Report 2022 | E1: =+'Cover Page'!$B$33 -> Kent Enviropower Limited
A3: Monitoring of Oxides of Nitrogen emissions | D3: Whole Installation | G3: See Notes in Cell Q3 | J3: =+A3 -> Monitoring of Oxides of Nitrogen emissions | N3: Per Combustion Line | Q3: Notes:
Q4: User to add logic to complete Whole installation, Table A5:G18. From the data in Per Combustion Line, Table J6:O79, subject to No. of lines installed
A5: mg/Nm3 | B5: 1/2 Hourly Reference Periods | E5: Daily Reference Periods
A6: =+'Cover Page'!C39 -> 2022 | B6: 1/2 hourly NOx ELV | C6: Monthly 1/2 hourly mean | D6: Highest 1/2 hourly maximum | E6: Daily NOx ELV | F6: Monthly daily mean | G6: Highest daily maximum | J6: =+A6 -> 2022 | K6: mg/Nm3 | L6: Monthly 1/2 hourly mean | M6: Monthly 1/2 hourly maximum | N6: Monthly daily mean | O6: Monthly daily maximum
A7: Jan | B7: 400 | C7: 152.43 | D7: 265.4 | E7: 200 | F7: 152.86 | G7: 167.5 | J7: A1 | K7: Jan | L7: 146.4 | M7: 265.4 | N7: 146.6 | O7: 164.5
A8: Feb | B8: 400 | C8: 150.13 | D8: 281.2 | E8: 200 | F8: 150.4 | G8: 166 | K8: Feb | L8: 145.7 | M8: 253.9 | N8: 146 | O8: 160.7
A9: Mar | B9: 400 | C9: 147.63 | D9: 219.2 | E9: 200 | F9: 97.1 | G9: 162.6 | K9: Mar | L9: 136.3 | M9: 219.2 | N9: 135.9 | O9: 147.5 | Q9: Whole Installation table A5:G18:
A10: Apr | B10: 400 | C10: 141.56 | D10: 249.9 | E10: 200 | F10: 141.93 | G10: 168.1 | K10: Apr | L10: 134 | M10: 223.8 | N10: 134.3 | O10: 154.1 | Q10: Mean: for 1/2 hourly and daily periods calculate mean of values across all operational combustion lines for the month
A11: May | B11: 400 | C11: 137.93 | D11: 235.7 | E11: 200 | F11: 137.93 | G11: 165.5 | K11: May | L11: 128.1 | M11: 235.7 | N11: 128.2 | O11: 160.5
A12: Jun | B12: 400 | C12: 121.56 | D12: 307.2 | E12: 200 | F12: 121.26 | G12: 150.7 | K12: Jun | L12: 113.3 | M12: 307.2 | N12: 112.7 | O12: 130.2
A13: Jul | B13: 400 | C13: 119.46 | D13: 213.3 | E13: 200 | F13: 118.86 | G13: 147.8 | K13: Jul | L13: 109.2 | M13: 213.3 | N13: 107.9 | O13: 129.6 | Q13: Maximum: for 1/2 hourly and daily periods use the highest value across all operational combustion lines for the month
A14: Aug | B14: 400 | C14: 120.56 | D14: 364.5 | E14: 200 | F14: 120.9 | G14: 160.3 | K14: Aug | L14: 105.9 | M14: 176.2 | N14: 106.1 | O14: 119.6
A15: Sep | B15: 400 | C15: 128.93 | D15: 337.2 | E15: 200 | F15: 127.36 | G15: 155.6 | K15: Sep | L15: 118.1 | M15: 165.2 | N15: 114.8 | O15: 135.2
A16: Oct | B16: 400 | C16: 137.7 | D16: 330.9 | E16: 200 | F16: 137.16 | G16: 166.4 | K16: Oct | L16: 134.4 | M16: 269 | N16: 133.2 | O16: 166.4
A17: Nov | B17: 400 | C17: 138.4 | D17: 465.6 | E17: 200 | F17: 138.46 | G17: 165.2 | K17: Nov | L17: 132.7 | M17: 250.4 | N17: 132.7 | O17: 156.8
A18: Dec | B18: 400 | C18: 123.7 | D18: 310.5 | E18: 200 | F18: 123.4 | G18: 159.4 | K18: Dec | L18: 125.8 | M18: 310.5 | N18: 125.4 | O18: 145.9
K19: Annual | L19: =AVERAGE(L7:L18) -> 127.4916667 | M19: =MAX(M7:M18) -> 310.5 | N19: =AVERAGE(N7:N18) -> 126.9833333 | O19: =MAX(O7:O18) -> 166.4
J21: =+A6 -> 2022 | K21: mg/Nm3 | L21: Monthly 1/2 hourly mean | M21: Monthly 1/2 hourly maximum | N21: Monthly daily mean | O21: Monthly daily maximum
J22: A2 | K22: Jan | L22: 156 | M22: 207 | N22: 156.3 | O22: 167.5
K23: Feb | L23: 158.1 | M23: 213.9 | N23: 157.9 | O23: 166
K24: Mar | L24: 155.4 | M24: 191.6 | N24: 155.4 | O24: 162.6
K25: Apr | L25: 149.7 | M25: 249.9 | N25: 150.5 | O25: 168.1
K26: May | L26: 147.1 | M26: 196.1 | N26: 147 | O26: 165.5
K27: Jun | L27: 133.5 | M27: 237.3 | N27: 133.3 | O27: 150.7
K28: Jul | L28: 136.1 | M28: 182.1 | N28: 135.6 | O28: 147.8
K29: Aug | L29: 141.7 | M29: 364.5 | N29: 142 | O29: 160.3
K30: Sep | L30: 142.5 | M30: 337.2 | N30: 141.5 | O30: 153.6
K31: Oct | L31: 146.5 | M31: 330.9 | N31: 146 | O31: 165.9
K32: Nov | L32: 150.1 | M32: 465.6 | N32: 150.5 | O32: 165.2
K33: Dec | L33: 134.9 | M33: 226.7 | N33: 135.3 | O33: 159.4
K34: Annual | L34: =AVERAGE(L22:L33) -> 145.9666667 | M34: =MAX(M22:M33) -> 465.6 | N34: =AVERAGE(N22:N33) -> 145.9416667 | O34: =MAX(O22:O33) -> 168.1
J36: =+A6 -> 2022 | K36: mg/Nm3 | L36: Monthly 1/2 hourly mean | M36: Monthly 1/2 hourly maximum | N36: Monthly daily mean | O36: Monthly daily maximum
J37: A3 | K37: Jan | L37: 154.9 | M37: 221.2 | N37: 155.7 | O37: 166.9
K38: Feb | L38: 146.6 | M38: 281.2 | N38: 147.3 | O38: 165.8
K39: Mar | L39: 151.2 | M39: 176.1 | N39: 0 | O39: 0
K40: Apr | L40: 141 | M40: 239.2 | N40: 141 | O40: 164.7
K41: May | L41: 138.6 | M41: 197.6 | N41: 138.6 | O41: 162
K42: Jun | L42: 117.9 | M42: 172.3 | N42: 117.8 | O42: 136.9
K43: Jul | L43: 113.1 | M43: 203.2 | N43: 113.1 | O43: 127.7
K44: Aug | L44: 114.1 | M44: 177.5 | N44: 114.6 | O44: 130.9
K45: Sep | L45: 126.2 | M45: 195 | N45: 125.8 | O45: 155.6
K46: Oct | L46: 132.2 | M46: 254.6 | N46: 132.3 | O46: 164.8
K47: Nov | L47: 132.4 | M47: 326.4 | N47: 132.2 | O47: 154.7
A48: Comments : | K48: Dec | L48: 110.4 | M48: 185.9 | N48: 109.5 | O48: 127
A49: No comments to add | K49: Annual | L49: =AVERAGE(L37:L48) -> 131.55 | M49: =MAX(M37:M48) -> 326.4 | N49: =AVERAGE(N37:N48) -> 118.9916667 | O49: =MAX(O37:O48) -> 166.9
J51: =+A6 -> 2022 | K51: mg/Nm3 | L51: Monthly 1/2 hourly mean | M51: Monthly 1/2 hourly maximum | N51: Monthly daily mean | O51: Monthly daily maximum
J52: A4 | K52: Jan
K53: Feb
K54: Mar
K55: Apr
K56: May
K57: Jun
K58: Jul
K59: Aug
K60: Sep
K61: Oct
K62: Nov
K63: Dec
K64: Annual | L64: =AVERAGE(L52:L63) ->  | M64: =MAX(M52:M63) -> 0 | N64: =AVERAGE(N52:N63) ->  | O64: =MAX(O52:O63) -> 0
J66: =+A6 -> 2022 | K66: mg/Nm3 | L66: Monthly 1/2 hourly mean | M66: Monthly 1/2 hourly maximum | N66: Monthly daily mean | O66: Monthly daily maximum
J67: A5 | K67: Jan
K68: Feb
K69: Mar
K70: Apr
K71: May
K72: Jun
K73: Jul
K74: Aug
K75: Sep
K76: Oct
K77: Nov
K78: Dec
K79: Annual | L79: =AVERAGE(L67:L78) ->  | M79: =MAX(M67:M78) -> 0 | N79: =AVERAGE(N67:N78) ->  | O79: =MAX(O67:O78) -> 0

Sheet TOC
A1: =+'Cover Page'!$B$29 -> Annual Performance Report 2022 | E1: =+'Cover Page'!$B$33 -> Kent Enviropower Limited
A3: Monitoring of Total organic carbon emissions | D3: Whole Installation | G3: See Notes in Cell Q3 | J3: =+A3 -> Monitoring of Total organic carbon emissions | N3: Per Combustion Line | Q3: Notes:
Q4: User to add logic to complete Whole installation, Table A5:G18. From the data in Per Combustion Line, Table J6:O79, subject to No. of lines installed
A5: mg/Nm3 | B5: 1/2 Hourly Reference Periods | E5: Daily Reference Periods
A6: =+'Cover Page'!C39 -> 2022 | B6: 1/2 hourly TOC ELV | C6: Monthly 1/2 hourly mean | D6: Highest 1/2 hourly maximum | E6: Daily TOC ELV | F6: Monthly daily mean | G6: Highest daily maximum | J6: =+A6 -> 2022 | K6: mg/Nm3 | L6: Monthly 1/2 hourly mean | M6: Monthly 1/2 hourly maximum | N6: Monthly daily mean | O6: Monthly daily maximum
A7: Jan | B7: 10 | C7: 0.4 | D7: 176.9 | E7: 10 | F7: 0.4 | G7: 4 | J7: A1 | K7: Jan | L7: 0.3 | M7: 11.7 | N7: 0.3 | O7: 0.7
A8: Feb | B8: 10 | C8: 0.33 | D8: 23.7 | E8: 10 | F8: 0.3 | G8: 0.7 | K8: Feb | L8: 0.4 | M8: 23.7 | N8: 0.3 | O8: 0.6
A9: Mar | B9: 10 | C9: 0.3 | D9: 4.5 | E9: 10 | F9: 0.16 | G9: 0.6 | K9: Mar | L9: 0.3 | M9: 4.5 | N9: 0.3 | O9: 0.6 | Q9: Whole Installation table A5:G18:
A10: Apr | B10: 10 | C10: 0.4 | D10: 18 | E10: 10 | F10: 0.4 | G10: 0.9 | K10: Apr | L10: 0.4 | M10: 11.3 | N10: 0.4 | O10: 0.9 | Q10: Mean: for 1/2 hourly and daily periods calculate mean of values across all operational combustion lines for the month
A11: May | B11: 10 | C11: 0.36 | D11: 26 | E11: 10 | F11: 0.36 | G11: 1 | K11: May | L11: 0.4 | M11: 26 | N11: 0.4 | O11: 1
A12: Jun | B12: 10 | C12: 0.4 | D12: 42.7 | E12: 10 | F12: 0.4 | G12: 1.3 | K12: Jun | L12: 0.5 | M12: 42.7 | N12: 0.5 | O12: 1.3
A13: Jul | B13: 10 | C13: 0.46 | D13: 62.5 | E13: 10 | F13: 0.46 | G13: 1.8 | K13: Jul | L13: 0.6 | M13: 55.1 | N13: 0.6 | O13: 1.7 | Q13: Maximum: for 1/2 hourly and daily periods use the highest value across all operational combustion lines for the month
A14: Aug | B14: 10 | C14: 0.43 | D14: 21.7 | E14: 10 | F14: 0.43 | G14: 1.4 | K14: Aug | L14: 0.5 | M14: 17 | N14: 0.5 | O14: 1.1
A15: Sep | B15: 10 | C15: 0.43 | D15: 65.5 | E15: 10 | F15: 0.43 | G15: 1.7 | K15: Sep | L15: 0.5 | M15: 65.5 | N15: 0.5 | O15: 1.7
A16: Oct | B16: 10 | C16: 0.76 | D16: 1292.9 | E16: 10 | F16: 0.4 | G16: 1.5 | K16: Oct | L16: 1.5 | M16: 1292.9 | N16: 0.4 | O16: 1.5
A17: Nov | B17: 10 | C17: 0.3 | D17: 27.3 | E17: 10 | F17: 0.3 | G17: 0.8 | K17: Nov | L17: 0.3 | M17: 10.2 | N17: 0.3 | O17: 0.5
A18: Dec | B18: 10 | C18: 0.3 | D18: 37.9 | E18: 10 | F18: 0.33 | G18: 1.3 | K18: Dec | L18: 0.3 | M18: 37.9 | N18: 0.4 | O18: 1.3
K19: Annual | L19: =AVERAGE(L7:L18) -> 0.5 | M19: =MAX(M7:M18) -> 1292.9 | N19: =AVERAGE(N7:N18) -> 0.4083333333 | O19: =MAX(O7:O18) -> 1.7
J21: =+A6 -> 2022 | K21: mg/Nm3 | L21: Monthly 1/2 hourly mean | M21: Monthly 1/2 hourly maximum | N21: Monthly daily mean | O21: Monthly daily maximum
J22: A2 | K22: Jan | L22: 0.2 | M22: 9 | N22: 0.2 | O22: 0.5
K23: Feb | L23: 0.2 | M23: 6.8 | N23: 0.2 | O23: 0.4
K24: Mar | L24: 0.2 | M24: 2.7 | N24: 0.2 | O24: 0.5
K25: Apr | L25: 0.3 | M25: 18 | N25: 0.3 | O25: 0.7
K26: May | L26: 0.3 | M26: 10.5 | N26: 0.3 | O26: 0.6
K27: Jun | L27: 0.3 | M27: 10.4 | N27: 0.3 | O27: 0.6
K28: Jul | L28: 0.4 | M28: 62.5 | N28: 0.4 | O28: 1.8
K29: Aug | L29: 0.4 | M29: 21.7 | N29: 0.4 | O29: 1.4
K30: Sep | L30: 0.4 | M30: 49.8 | N30: 0.4 | O30: 1.4
K31: Oct | L31: 0.4 | M31: 26.4 | N31: 0.4 | O31: 1.2
K32: Nov | L32: 0.2 | M32: 27.3 | N32: 0.2 | O32: 0.8
K33: Dec | L33: 0.2 | M33: 20 | N33: 0.2 | O33: 0.6
K34: Annual | L34: =AVERAGE(L22:L33) -> 0.2916666667 | M34: =MAX(M22:M33) -> 62.5 | N34: =AVERAGE(N22:N33) -> 0.2916666667 | O34: =MAX(O22:O33) -> 1.8
J36: =+A6 -> 2022 | K36: mg/Nm3 | L36: Monthly 1/2 hourly mean | M36: Monthly 1/2 hourly maximum | N36: Monthly daily mean | O36: Monthly daily maximum
J37: A3 | K37: Jan | L37: 0.7 | M37: 176.9 | N37: 0.7 | O37: 4
K38: Feb | L38: 0.4 | M38: 6.5 | N38: 0.4 | O38: 0.7
K39: Mar | L39: 0.4 | M39: 2 | N39: 0 | O39: 0
K40: Apr | L40: 0.5 | M40: 6.8 | N40: 0.5 | O40: 0.7
K41: May | L41: 0.4 | M41: 21.1 | N41: 0.4 | O41: 0.9
K42: Jun | L42: 0.4 | M42: 28.6 | N42: 0.4 | O42: 1
K43: Jul | L43: 0.4 | M43: 8.3 | N43: 0.4 | O43: 0.8
K44: Aug | L44: 0.4 | M44: 6.7 | N44: 0.4 | O44: 0.6
K45: Sep | L45: 0.4 | M45: 6.8 | N45: 0.4 | O45: 0.7
K46: Oct | L46: 0.4 | M46: 10.5 | N46: 0.4 | O46: 0.5
K47: Nov | L47: 0.4 | M47: 7.7 | N47: 0.4 | O47: 0.6
A48: Comments : | K48: Dec | L48: 0.4 | M48: 2.5 | N48: 0.4 | O48: 0.7
A49: No comments to add | K49: Annual | L49: =AVERAGE(L37:L48) -> 0.4333333333 | M49: =MAX(M37:M48) -> 176.9 | N49: =AVERAGE(N37:N48) -> 0.4 | O49: =MAX(O37:O48) -> 4
J51: =+A6 -> 2022 | K51: mg/Nm3 | L51: Monthly 1/2 hourly mean | M51: Monthly 1/2 hourly maximum | N51: Monthly daily mean | O51: Monthly daily maximum
J52: A4 | K52: Jan
K53: Feb
K54: Mar
K55: Apr
K56: May
K57: Jun
K58: Jul
K59: Aug
K60: Sep
K61: Oct
K62: Nov
K63: Dec
K64: Annual | L64: =AVERAGE(L52:L63) ->  | M64: =MAX(M52:M63) -> 0 | N64: =AVERAGE(N52:N63) ->  | O64: =MAX(O52:O63) -> 0
J66: =+A6 -> 2022 | K66: mg/Nm3 | L66: Monthly 1/2 hourly mean | M66: Monthly 1/2 hourly maximum | N66: Monthly daily mean | O66: Monthly daily maximum
J67: A5 | K67: Jan
K68: Feb
K69: Mar
K70: Apr
K71: May
K72: Jun
K73: Jul
K74: Aug
K75: Sep
K76: Oct
K77: Nov
K78: Dec
K79: Annual | L79: =AVERAGE(L67:L78) ->  | M79: =MAX(M67:M78) -> 0 | N79: =AVERAGE(N67:N78) ->  | O79: =MAX(O67:O78) -> 0

Sheet Particulates
A1: =+'Cover Page'!$B$29 -> Annual Performance Report 2022 | E1: =+'Cover Page'!$B$33 -> Kent Enviropower Limited
A3: Monitoring of Particulate matter emissions | D3: Whole Installation | G3: See Notes in Cell Q3 | J3: =+A3 -> Monitoring of Particulate matter emissions | N3: Per Combustion Line | Q3: Notes:
Q4: User to add logic to complete Whole installation, Table A5:G18. From the data in Per Combustion Line, Table J6:O79, subject to No. of lines installed
A5: mg/Nm3 | B5: 1/2 Hourly Reference Periods | E5: Daily Reference Periods
A6: =+'Cover Page'!C39 -> 2022 | B6: 1/2 hourly PM ELV | C6: Monthly 1/2 hourly mean | D6: Highest 1/2 hourly maximum | E6: Daily PM ELV | F6: Monthly daily mean | G6: Highest daily maximum | J6: =+A6 -> 2022 | K6: mg/Nm3 | L6: Monthly 1/2 hourly mean | M6: Monthly 1/2 hourly maximum | N6: Monthly daily mean | O6: Monthly daily maximum
A7: Jan | B7: 30 | C7: 1.9 | D7: 16.9 | E7: 10 | F7: 1.86 | G7: 4.3 | J7: A1 | K7: Jan | L7: 0.4 | M7: 7 | N7: 0.4 | O7: 3.3
A8: Feb | B8: 30 | C8: 1.6 | D8: 7.8 | E8: 10 | F8: 1.66 | G8: 4.2 | K8: Feb | L8: 0.5 | M8: 7.3 | N8: 0.6 | O8: 2.2
A9: Mar | B9: 30 | C9: 2.43 | D9: 6.6 | E9: 10 | F9: 1.2 | G9: 3.6 | K9: Mar | L9: 0.9 | M9: 6.1 | N9: 0.9 | O9: 2.9 | Q9: Whole Installation table A5:G18:
A10: Apr | B10: 30 | C10: 0.3 | D10: 6.8 | E10: 10 | F10: 0.3 | G10: 1.9 | K10: Apr | L10: 0.3 | M10: 6.8 | N10: 0.3 | O10: 1.9 | Q10: Mean: for 1/2 hourly and daily periods calculate mean of values across all operational combustion lines for the month
A11: May | B11: 30 | C11: 0.36 | D11: 7.2 | E11: 10 | F11: 0.4 | G11: 2.7 | K11: May | L11: 0.5 | M11: 7.2 | N11: 0.6 | O11: 2.7
A12: Jun | B12: 30 | C12: 0.6 | D12: 20.5 | E12: 10 | F12: 0.6 | G12: 4.3 | K12: Jun | L12: 0.9 | M12: 20.5 | N12: 0.9 | O12: 4.3
A13: Jul | B13: 30 | C13: 0.63 | D13: 4.3 | E13: 10 | F13: 0.6 | G13: 3.3 | K13: Jul | L13: 1.1 | M13: 4.3 | N13: 1 | O13: 3.3 | Q13: Maximum: for 1/2 hourly and daily periods use the highest value across all operational combustion lines for the month
A14: Aug | B14: 30 | C14: 1 | D14: 12 | E14: 10 | F14: 0.96 | G14: 3 | K14: Aug | L14: 1.1 | M14: 12 | N14: 1 | O14: 3
A15: Sep | B15: 30 | C15: 1.26 | D15: 7.4 | E15: 10 | F15: 1.33 | G15: 4.2 | K15: Sep | L15: 2.2 | M15: 7.4 | N15: 2.3 | O15: 3.6
A16: Oct | B16: 30 | C16: 1.03 | D16: 6.6 | E16: 10 | F16: 1.03 | G16: 2.8 | K16: Oct | L16: 1.6 | M16: 6.6 | N16: 1.6 | O16: 2.8
A17: Nov | B17: 30 | C17: 1.6 | D17: 5.3 | E17: 10 | F17: 1.6 | G17: 4.1 | K17: Nov | L17: 1.3 | M17: 5.3 | N17: 1.3 | O17: 4.1
A18: Dec | B18: 30 | C18: 2 | D18: 7.9 | E18: 10 | F18: 2.03 | G18: 4.6 | K18: Dec | L18: 2.3 | M18: 7.9 | N18: 2.3 | O18: 4.6
K19: Annual | L19: =AVERAGE(L7:L18) -> 1.091666667 | M19: =MAX(M7:M18) -> 20.5 | N19: =AVERAGE(N7:N18) -> 1.1 | O19: =MAX(O7:O18) -> 4.6
J21: =+A6 -> 2022 | K21: mg/Nm3 | L21: Monthly 1/2 hourly mean | M21: Monthly 1/2 hourly maximum | N21: Monthly daily mean | O21: Monthly daily maximum
J22: A2 | K22: Jan | L22: 2.8 | M22: 16.9 | N22: 2.7 | O22: 3.8
K23: Feb | L23: 1.8 | M23: 7.8 | N23: 1.9 | O23: 4.1
K24: Mar | L24: 2.7 | M24: 6.6 | N24: 2.7 | O24: 3.6
K25: Apr | L25: 0.3 | M25: 1.3 | N25: 0.3 | O25: 0.8
K26: May | L26: 0.2 | M26: 1 | N26: 0.2 | O26: 0.3
K27: Jun | L27: 0.5 | M27: 1.1 | N27: 0.5 | O27: 0.8
K28: Jul | L28: 0.4 | M28: 1.2 | N28: 0.4 | O28: 0.9
K29: Aug | L29: 1.4 | M29: 3.8 | N29: 1.4 | O29: 2.8
K30: Sep | L30: 1 | M30: 7.2 | N30: 1.1 | O30: 4.2
K31: Oct | L31: 0.8 | M31: 3.7 | N31: 0.8 | O31: 2.3
K32: Nov | L32: 1.8 | M32: 3.6 | N32: 1.8 | O32: 3.1
K33: Dec | L33: 1 | M33: 3.7 | N33: 1.1 | O33: 2.2
K34: Annual | L34: =AVERAGE(L22:L33) -> 1.225 | M34: =MAX(M22:M33) -> 16.9 | N34: =AVERAGE(N22:N33) -> 1.241666667 | O34: =MAX(O22:O33) -> 4.2
J36: =+A6 -> 2022 | K36: mg/Nm3 | L36: Monthly 1/2 hourly mean | M36: Monthly 1/2 hourly maximum | N36: Monthly daily mean | O36: Monthly daily maximum
J37: A3 | K37: Jan | L37: 2.5 | M37: 14.2 | N37: 2.5 | O37: 4.3
K38: Feb | L38: 2.5 | M38: 6.6 | N38: 2.5 | O38: 4.2
K39: Mar | L39: 3.7 | M39: 4.4 | N39: 0 | O39: 0
K40: Apr | L40: 0.3 | M40: 2.5 | N40: 0.3 | O40: 0.5
K41: May | L41: 0.4 | M41: 1.3 | N41: 0.4 | O41: 0.8
K42: Jun | L42: 0.4 | M42: 1 | N42: 0.4 | O42: 0.7
K43: Jul | L43: 0.4 | M43: 1.4 | N43: 0.4 | O43: 0.5
K44: Aug | L44: 0.5 | M44: 2.2 | N44: 0.5 | O44: 0.7
K45: Sep | L45: 0.6 | M45: 1.3 | N45: 0.6 | O45: 0.7
K46: Oct | L46: 0.7 | M46: 1.8 | N46: 0.7 | O46: 1.1
K47: Nov | L47: 1.7 | M47: 4 | N47: 1.7 | O47: 3
A48: Comments : | K48: Dec | L48: 2.7 | M48: 4.7 | N48: 2.7 | O48: 3.8
A49: No comments to add | K49: Annual | L49: =AVERAGE(L37:L48) -> 1.366666667 | M49: =MAX(M37:M48) -> 14.2 | N49: =AVERAGE(N37:N48) -> 1.058333333 | O49: =MAX(O37:O48) -> 4.3
J51: =+A6 -> 2022 | K51: mg/Nm3 | L51: Monthly 1/2 hourly mean | M51: Monthly 1/2 hourly maximum | N51: Monthly daily mean | O51: Monthly daily maximum
J52: A4 | K52: Jan
K53: Feb
K54: Mar
K55: Apr
K56: May
K57: Jun
K58: Jul
K59: Aug
K60: Sep
K61: Oct
K62: Nov
K63: Dec
K64: Annual | L64: =AVERAGE(L52:L63) ->  | M64: =MAX(M52:M63) -> 0 | N64: =AVERAGE(N52:N63) ->  | O64: =MAX(O52:O63) -> 0
J66: =+A6 -> 2022 | K66: mg/Nm3 | L66: Monthly 1/2 hourly mean | M66: Monthly 1/2 hourly maximum | N66: Monthly daily mean | O66: Monthly daily maximum
J67: A5 | K67: Jan
K68: Feb
K69: Mar
K70: Apr
K71: May
K72: Jun
K73: Jul
K74: Aug
K75: Sep
K76: Oct
K77: Nov
K78: Dec
K79: Annual | L79: =AVERAGE(L67:L78) ->  | M79: =MAX(M67:M78) -> 0 | N79: =AVERAGE(N67:N78) ->  | O79: =MAX(O67:O78) -> 0

Sheet CO 95% 10 min
A1: =+'Cover Page'!$B$29 -> Annual Performance Report 2022 | E1: =+'Cover Page'!$B$33 -> Kent Enviropower Limited
A3: Monitoring of Carbon Monoxide (10-minute avg) | E3: Whole Installation | H3: See Notes in Cell S3 | J3: =+A3 -> Monitoring of Carbon Monoxide (10-minute avg) | O3: Per Combustion Line | Q3: Notes: | S3: Notes:
S4: User to add logic to complete Whole installation, Table A5:H18. From the data in Per Combustion Line, Table K6:Q79, subject to No. of lines installed
A5: mg/Nm3 | B5: 10-minute Reference Periods | F5: Daily Reference Periods
A6: =+'Cover Page'!C39 -> 2022 | B6: 95%ile 10-min avg CO ELV | C6: 95%ile 10-min avg maximum | D6: Monthly CO 10-min avg mean | E6: 10-min avg maximum | F6: Daily CO ELV | G6: Monthly daily mean | H6: Highest daily maximum | K6: =+A6 -> 2022 | L6: mg/Nm3 | M6: 95%ile 10-min avg maximum | N6: Monthly CO 10-min avg mean | O6: 10-min avg maximum | P6: Monthly daily mean | Q6: Monthly daily maximum
A7: Jan | B7: 150 | C7: 28.5 | D7: 4.3 | E7: 846 | F7: 50 | G7: 4.1 | H7: 13.7 | K7: A1 | L7: Jan | M7: 10.8 | N7: 3.5 | O7: 794.1 | P7: 3.4 | Q7: 10.5
A8: Feb | B8: =+B7 -> 150 | C8: 15.7 | D8: 3.66 | E8: 1235.8 | F8: =+F7 -> 50 | G8: 3.3 | H8: 12.2 | L8: Feb | M8: 15.7 | N8: 5.4 | O8: 1235.8 | P8: 4.3 | Q8: 12.2
A9: Mar | B9: =+B8 -> 150 | C9: 14.8 | D9: 1.96 | E9: 406 | F9: =+F8 -> 50 | G9: 0.9 | H9: 7.3 | L9: Mar | M9: 4.5 | N9: 2.1 | O9: 406 | P9: 1.7 | Q9: 7.3 | S9: Whole Installation table A5:H18:
A10: Apr | B10: 150 | C10: 26.4 | D10: 4.06 | E10: 1089.9 | F10: 50 | G10: 4.03 | H10: 24.1 | L10: Apr | M10: 20 | N10: 5.2 | O10: 1089.9 | P10: 5.2 | Q10: 24.1 | S10: Mean: for 10-min and daily periods use average of all operational combustion lines.
A11: May | B11: 150 | C11: 25.2 | D11: 4.5 | E11: 10394.4 | F11: 50 | G11: 3.66 | H11: 34.9 | L11: May | M11: 8.6 | N11: 6.6 | O11: 10394.4 | P11: 4.3 | Q11: 34.9
A12: Jun | B12: 150 | C12: 41.6 | D12: 5.4 | E12: 3605.8 | F12: 50 | G12: 5.4 | H12: 28.4 | L12: Jun | M12: 41.6 | N12: 8.4 | O12: 3605.8 | P12: 8.4 | Q12: 28.4
A13: Jul | B13: 150 | C13: 31.6 | D13: 5.8 | E13: 4239.7 | F13: 50 | G13: 5.86 | H13: 35.8 | L13: Jul | M13: 31.6 | N13: 8.4 | O13: 4239.7 | P13: 8.8 | Q13: 35.8 | S13: Maximum: for 10-min and daily periods use the highest of all operational combustion lines in any month.
A14: Aug | B14: 150 | C14: 44.5 | D14: 5.76 | E14: 859.1 | F14: 50 | G14: 5.53 | H14: 18 | L14: Aug | M14: 26.8 | N14: 6.1 | O14: 859.1 | P14: 5.6 | Q14: 17.6
A15: Sep | B15: 150 | C15: 28.6 | D15: 5.33 | E15: 2764.4 | F15: 50 | G15: 5.26 | H15: 23.7 | L15: Sep | M15: 9 | N15: 6.2 | O15: 2764.4 | P15: 6.1 | Q15: 23.7
A16: Oct | B16: 150 | C16: 38.3 | D16: 10.26 | E16: 24734.1 | F16: 50 | G16: 5.8 | H16: 31.2 | L16: Oct | M16: 5.6 | N16: 17.8 | O16: 24734.1 | P16: 4.3 | Q16: 31.2
A17: Nov | B17: 150 | C17: 46.3 | D17: 6.1 | E17: 1214.4 | F17: 50 | G17: 6.03 | H17: 19.7 | L17: Nov | M17: 5.4 | N17: 3.3 | O17: 1160 | P17: 3.3 | Q17: 10.2
A18: Dec | B18: 150 | C18: 29.1 | D18: 4.13 | E18: 1594.9 | F18: 50 | G18: 3.93 | H18: 22.8 | L18: Dec | M18: 2.2 | N18: 2.5 | O18: 1594.9 | P18: 2.5 | Q18: 22.8
L19: Annual | M19: =AVERAGE(M7:M18) -> 15.15 | O19: =MAX(O7:O18) -> 24734.1 | P19: =AVERAGE(P7:P18) -> 4.825 | Q19: =MAX(Q7:Q18) -> 35.8
K21: =+A6 -> 2022 | L21: mg/Nm3 | M21: 95%ile 10-min avg maximum | N21: Monthly CO 10-min avg mean | O21: 10-min avg maximum | P21: Monthly daily mean | Q21: Monthly daily maximum
K22: A2 | L22: Jan | M22: 4.5 | N22: 2.8 | O22: 787.7 | P22: 2.8 | Q22: 12.1
L23: Feb | M23: 5.3 | N23: 2.6 | O23: 567.5 | P23: 2.7 | Q23: 8.2
L24: Mar | M24: 1.8 | N24: 1 | O24: 137.7 | P24: 1 | Q24: 3
L25: Apr | M25: 3.6 | N25: 1.6 | O25: 257.1 | P25: 1.6 | Q25: 3.8
L26: May | M26: 0.8 | N26: 1.3 | O26: 330.6 | P26: 1.1 | Q26: 4.4
L27: Jun | M27: 4.4 | N27: 2.3 | O27: 575.9 | P27: 2.3 | Q27: 11.6
L28: Jul | M28: 5.9 | N28: 3.5 | O28: 1556.4 | P28: 3.3 | Q28: 21.8
L29: Aug | M29: 3.9 | N29: 2.5 | O29: 466.6 | P29: 2.4 | Q29: 14.7
L30: Sep | M30: 6.7 | N30: 3.6 | O30: 1540.3 | P30: 3.6 | Q30: 18.1
L31: Oct | M31: 26.4 | N31: 5.9 | O31: 930.1 | P31: 6 | Q31: 16.4
L32: Nov | M32: 33 | N32: 6.9 | O32: 1214.4 | P32: 7 | Q32: 19.7
L33: Dec | M33: 15.6 | N33: 4.5 | O33: 516.2 | P33: 4.2 | Q33: 10
L34: Annual | M34: =AVERAGE(M22:M33) -> 9.325 | O34: =MAX(O22:O33) -> 1556.4 | P34: =AVERAGE(P22:P33) -> 3.166666667 | Q34: =MAX(Q22:Q33) -> 21.8
K36: =+A6 -> 2022 | L36: mg/Nm3 | M36: 95%ile 10-min avg maximum | N36: Monthly CO 10-min avg mean | O36: 10-min avg maximum | P36: Monthly daily mean | Q36: Monthly daily maximum
K37: A3 | L37: Jan | M37: 28.5 | N37: 6.6 | O37: 846 | P37: 6.1 | Q37: 13.7
L38: Feb | M38: 9.7 | N38: 3 | O38: 458.4 | P38: 2.9 | Q38: 10.2
L39: Mar | M39: 14.8 | N39: 2.8 | O39: 163.9 | P39: 0 | Q39: 0
L40: Apr | M40: 26.4 | N40: 5.4 | O40: 583.3 | P40: 5.3 | Q40: 18.2
L41: May | M41: 25.2 | N41: 5.6 | O41: 883.5 | P41: 5.6 | Q41: 14.8
L42: Jun | M42: 28.7 | N42: 5.5 | O42: 515.2 | P42: 5.5 | Q42: 13
L43: Jul | M43: 27 | N43: 5.5 | O43: 691.9 | P43: 5.5 | Q43: 13
L44: Aug | M44: 44.5 | N44: 8.7 | O44: 545.3 | P44: 8.6 | Q44: 18
L45: Sep | M45: 28.6 | N45: 6.2 | O45: 522.7 | P45: 6.1 | Q45: 14
L46: Oct | M46: 38.3 | N46: 7.1 | O46: 639 | P46: 7.1 | Q46: 13.6
L47: Nov | M47: 46.3 | N47: 8.1 | O47: 560 | P47: 7.8 | Q47: 13.2
A48: Comments : | L48: Dec | M48: 29.1 | N48: 5.4 | O48: 609.9 | P48: 5.1 | Q48: 18.1
A49: Environment Agency explanatory note: The 10-minute average ELV is based on the “95th percentile”. In this case this means that 95% of the 10 minute averages in the relevant 24-hour period (i.e. 137) must be below 150 mg/Nm3, and 5% (i.e. 7) are allowed to be any value above 150 mg/Nm3. Whilst we expect operators to minimise CO emissions at all times, it is perfectly acceptable for the value of the maximum 10-minute average to be above 150 mg/Nm3, provided the 95th percentile ELV has been met for that period. | L49: Annual | M49: =AVERAGE(M37:M48) -> 28.925 | O49: =MAX(O37:O48) -> 883.5 | P49: =AVERAGE(P37:P48) -> 5.466666667 | Q49: =MAX(Q37:Q48) -> 18.2
K51: =+A6 -> 2022 | L51: mg/Nm3 | M51: 95%ile 10-min avg maximum | N51: Monthly CO 10-min avg mean | O51: 10-min avg maximum | P51: Monthly daily mean | Q51: Monthly daily maximum
K52: A4 | L52: Jan
L53: Feb
L54: Mar
L55: Apr
L56: May
L57: Jun
L58: Jul
L59: Aug
L60: Sep
L61: Oct
L62: Nov
L63: Dec
L64: Annual | M64: =AVERAGE(M52:M63) ->  | O64: =MAX(O52:O63) -> 0 | P64: =AVERAGE(P52:P63) ->  | Q64: =MAX(Q52:Q63) -> 0
K66: =+A6 -> 2022 | L66: mg/Nm3 | M66: 95%ile 10-min avg maximum | N66: Monthly CO 10-min avg mean | O66: 10-min avg maximum | P66: Monthly daily mean | Q66: Monthly daily maximum
K67: A5 | L67: Jan
L68: Feb
L69: Mar
L70: Apr
L71: May
L72: Jun
L73: Jul
L74: Aug
L75: Sep
L76: Oct
L77: Nov
L78: Dec
L79: Annual | M79: =AVERAGE(M67:M78) ->  | O79: =MAX(O67:O78) -> 0 | P79: =AVERAGE(P67:P78) ->  | Q79: =MAX(Q67:Q78) -> 0

Sheet NH3
A1: =+'Cover Page'!$B$29 -> Annual Performance Report 2022 | E1: =+'Cover Page'!$B$33 -> Kent Enviropower Limited
A3: Monitoring of Ammnonia emissions | D3: Whole Installation | G3: See Notes in Cell Q3 | J3: =+A3 -> Monitoring of Ammnonia emissions | N3: Per Combustion Line | Q3: Notes:
Q4: User to add logic to complete Whole installation, Table A5:G18. From the data in Per Combustion Line, Table J6:O79, subject to No. of lines installed
A5: mg/Nm3 | B5: 1/2 Hourly Reference Periods | E5: Daily Reference Periods
A6: =+'Cover Page'!C39 -> 2022 | B6: 1/2 hourly NH3 ELV | C6: Monthly 1/2 hourly mean | D6: Highest 1/2 hourly maximum | E6: Daily NH3 ELV | F6: Monthly daily mean | G6: Highest daily maximum | J6: =+A6 -> 2022 | K6: mg/Nm3 | L6: Monthly 1/2 hourly mean | M6: Monthly 1/2 hourly maximum | N6: Monthly daily mean | O6: Monthly daily maximum
A7: Jan | B7: N/A | C7: 0.13 | D7: 8.3 | E7: 10 | F7: 0.13 | G7: 2 | J7: A1 | K7: Jan | L7: 0.1 | M7: 3.6 | N7: 0.1 | O7: 2
A8: Feb | B8: =+B7 -> N/A | C8: 0.13 | D8: 3.8 | E8: =+E7 -> 10 | F8: 0.13 | G8: 0.4 | K8: Feb | L8: 0.1 | M8: 2.9 | N8: 0.1 | O8: 0.2
A9: Mar | B9: =+B8 -> N/A | C9: 0.13 | D9: 2.5 | E9: =+E8 -> 10 | F9: 0.06 | G9: 0.2 | K9: Mar | L9: 0.1 | M9: 2.5 | N9: 0.1 | O9: 0.2 | Q9: Whole Installation table A5:G18:
A10: Apr | B10: N/A | C10: 0.26 | D10: 59.4 | E10: 10 | F10: 0.2 | G10: 0.7 | K10: Apr | L10: 0.2 | M10: 5 | N10: 0.2 | O10: 0.6 | Q10: Mean: for 1/2 hourly and daily periods calculate mean of values across all operational combustion lines for the month
A11: May | B11: N/A | C11: 0.2 | D11: 17.2 | E11: 10 | F11: 0.16 | G11: 0.6 | K11: May | L11: 0.2 | M11: 17.2 | N11: 0.2 | O11: 0.3
A12: Jun | B12: N/A | C12: 0.23 | D12: 23.6 | E12: 10 | F12: 0.23 | G12: 1.2 | K12: Jun | L12: 0.3 | M12: 23.6 | N12: 0.3 | O12: 1.2
A13: Jul | B13: N/A | C13: 0.23 | D13: 17.7 | E13: 10 | F13: 0.23 | G13: 0.9 | K13: Jul | L13: 0.3 | M13: 17.7 | N13: 0.3 | O13: 0.9 | Q13: Maximum: for 1/2 hourly and daily periods use the highest value across all operational combustion lines for the month
A14: Aug | B14: N/A | C14: 0.26 | D14: 5.7 | E14: 10 | F14: 0.26 | G14: 0.9 | K14: Aug | L14: 0.2 | M14: 5.1 | N14: 0.2 | O14: 0.6
A15: Sep | B15: N/A | C15: 0.23 | D15: 30.2 | E15: 10 | F15: 0.23 | G15: 1 | K15: Sep | L15: 0.2 | M15: 30.2 | N15: 0.2 | O15: 1
A16: Oct | B16: N/A | C16: 0.33 | D16: 149.2 | E16: 10 | F16: 0.26 | G16: 1.3 | K16: Oct | L16: 0.4 | M16: 149.2 | N16: 0.2 | O16: 1.3
A17: Nov | B17: N/A | C17: 0.23 | D17: 5.3 | E17: 10 | F17: 0.23 | G17: 0.7 | K17: Nov | L17: 0.1 | M17: 3.5 | N17: 0.1 | O17: 0.2
A18: Dec | B18: N/A | C18: 0.13 | D18: 10.9 | E18: 10 | F18: 0.13 | G18: 0.9 | K18: Dec | L18: 0.1 | M18: 10.9 | N18: 0.1 | O18: 0.6
K19: Annual | L19: =AVERAGE(L7:L18) -> 0.1916666667 | M19: =MAX(M7:M18) -> 149.2 | N19: =AVERAGE(N7:N18) -> 0.175 | O19: =MAX(O7:O18) -> 2
J21: =+A6 -> 2022 | K21: mg/Nm3 | L21: Monthly 1/2 hourly mean | M21: Monthly 1/2 hourly maximum | N21: Monthly daily mean | O21: Monthly daily maximum
J22: A2 | K22: Jan | L22: 0.1 | M22: 3.4 | N22: 0.1 | O22: 0.2
K23: Feb | L23: 0.1 | M23: 2 | N23: 0.1 | O23: 0.2
K24: Mar | L24: 0.1 | M24: 1.3 | N24: 0.1 | O24: 0.2
K25: Apr | L25: 0.3 | M25: 59.4 | N25: 0.1 | O25: 0.6
K26: May | L26: 0.1 | M26: 2 | N26: 0 | O26: 0.1
K27: Jun | L27: 0.1 | M27: 3.8 | N27: 0.1 | O27: 0.2
K28: Jul | L28: 0.1 | M28: 5.7 | N28: 0.1 | O28: 0.3
K29: Aug | L29: 0.1 | M29: 4.6 | N29: 0.1 | O29: 0.5
K30: Sep | L30: 0.1 | M30: 3.4 | N30: 0.1 | O30: 0.2
K31: Oct | L31: 0.2 | M31: 7.5 | N31: 0.2 | O31: 0.4
K32: Nov | L32: 0.2 | M32: 4.9 | N32: 0.2 | O32: 0.4
K33: Dec | L33: 0.1 | M33: 5.5 | N33: 0.1 | O33: 0.4
K34: Annual | L34: =AVERAGE(L22:L33) -> 0.1333333333 | M34: =MAX(M22:M33) -> 59.4 | N34: =AVERAGE(N22:N33) -> 0.1083333333 | O34: =MAX(O22:O33) -> 0.6
J36: =+A6 -> 2022 | K36: mg/Nm3 | L36: Monthly 1/2 hourly mean | M36: Monthly 1/2 hourly maximum | N36: Monthly daily mean | O36: Monthly daily maximum
J37: A3 | K37: Jan | L37: 0.2 | M37: 8.3 | N37: 0.2 | O37: 0.5
K38: Feb | L38: 0.2 | M38: 3.8 | N38: 0.2 | O38: 0.4
K39: Mar | L39: 0.2 | M39: 1.4 | N39: 0 | O39: 0
K40: Apr | L40: 0.3 | M40: 6.5 | N40: 0.3 | O40: 0.7
K41: May | L41: 0.3 | M41: 6.7 | N41: 0.3 | O41: 0.6
K42: Jun | L42: 0.3 | M42: 8.4 | N42: 0.3 | O42: 0.7
K43: Jul | L43: 0.3 | M43: 6.4 | N43: 0.3 | O43: 0.6
K44: Aug | L44: 0.5 | M44: 5.7 | N44: 0.5 | O44: 0.9
K45: Sep | L45: 0.4 | M45: 4.8 | N45: 0.4 | O45: 0.7
K46: Oct | L46: 0.4 | M46: 8.6 | N46: 0.4 | O46: 0.6
K47: Nov | L47: 0.4 | M47: 5.3 | N47: 0.4 | O47: 0.7
A48: Comments : | K48: Dec | L48: 0.2 | M48: 4 | N48: 0.2 | O48: 0.9
A49: An indicated ELV value of zero in the table above means that no ammonia limit is set in the permit. | K49: Annual | L49: =AVERAGE(L37:L48) -> 0.3083333333 | M49: =MAX(M37:M48) -> 8.6 | N49: =AVERAGE(N37:N48) -> 0.2916666667 | O49: =MAX(O37:O48) -> 0.9
J51: =+A6 -> 2022 | K51: mg/Nm3 | L51: Monthly 1/2 hourly mean | M51: Monthly 1/2 hourly maximum | N51: Monthly daily mean | O51: Monthly daily maximum
J52: A4 | K52: Jan
K53: Feb
K54: Mar
K55: Apr
K56: May
K57: Jun
K58: Jul
K59: Aug
K60: Sep
K61: Oct
K62: Nov
K63: Dec
K64: Annual | L64: =AVERAGE(L52:L63) ->  | M64: =MAX(M52:M63) -> 0 | N64: =AVERAGE(N52:N63) ->  | O64: =MAX(O52:O63) -> 0
J66: =+A6 -> 2022 | K66: mg/Nm3 | L66: Monthly 1/2 hourly mean | M66: Monthly 1/2 hourly maximum | N66: Monthly daily mean | O66: Monthly daily maximum
J67: A5 | K67: Jan
K68: Feb
K69: Mar
K70: Apr
K71: May
K72: Jun
K73: Jul
K74: Aug
K75: Sep
K76: Oct
K77: Nov
K78: Dec
K79: Annual | L79: =AVERAGE(L67:L78) ->  | M79: =MAX(M67:M78) -> 0 | N79: =AVERAGE(N67:N78) ->  | O79: =MAX(O67:O78) -> 0
